Workbook

Sheet Opt TA
A1: l | B1: 1.655387327 | G1: =PI()/180 -> 0.01745329252
A2: y | B2: 80 | C2: =B2*D_R -> 1.396263402 | N2: ,
A3: f | B3: 160 | C3: =B3*D_R -> 2.792526803 | N3: ,
B4: t | C4: u | D4: v | E4: ut | G4: Minimization of the maximum transmission angle deviation from 90o
B5: =TAN(C3/2) -> 5.67128182 | C5: =TAN((C3-C2)/2) -> 0.8390996312 | D5: =TAN(C2/2) -> 0.8390996312 | E5: =C5*B5 -> 4.758770483
A7: a1 | B7: =C7/$C$7 -> 1 | C7: =SQRT((C5^2+B1^2)/(1+C5^2)) -> 1.421708194
A8: a2 | B8: =C8/$C$7 -> 0.4521234473 | C8: =SQRT(D5^2/(1+D5^2)) -> 0.6427876097 | F8: max d | G8: =MAX(G10:G11) -> 72.08884812
A9: a3 | B9: 0.748439425 | C9: =B1*C8 -> 1.064062463 | F9: m | G9: d
A10: a4 | B10: 0.7215987549 | C10: =SQRT((B5^2+B1^2)/(1+B5^2)) -> 1.025902862 | E10: max | F10: =MAX(F15:F375) -> 162.0888481 | G10: =F10-90 -> 72.08884812
E11: min | F11: =MIN(F15:F375) -> 43.71630442 | G11: =90-F11 -> 46.28369558
A13: q12 | B13: q13 | C13: q14 | D13: q13 | E13: q14 | F13: m | N13: Dead Center design with optimum transmission angle
N14: Type l in between 1 and ut in cell B1 use solver tool to minimize the maximum deviation in cell G8 by changing B1
A15: 0 | B15: =FourBar2($B$8,$B$9,$B$10,1,1,A15*D_R) -> 1.143815554 | C15: 1.906809003 | D15: =B15/D_R -> 65.53580379 | E15: =C15/D_R -> 109.2521082 | F15: =E15-D15 -> 43.71630442 | N15: Constarint must be 1<l<ut
A16: 1 | B16: =FourBar2($B$8,$B$9,$B$10,1,1,A16*D_R) -> 1.129336016 | C16: 1.892513942 | D16: =B16/D_R -> 64.70618737 | E16: =C16/D_R -> 108.4330616 | F16: =E16-D16 -> 43.72687419
A17: 2 | B17: =FourBar2($B$8,$B$9,$B$10,1,1,A17*D_R) -> 1.114717522 | C17: 1.878448611 | D17: =B17/D_R -> 63.86860938 | E17: =C17/D_R -> 107.6271774 | F17: 43.75856807 | N17: For a more accurate result take smaller increments for q12.
A18: 3 | B18: =FourBar2($B$8,$B$9,$B$10,1,1,A18*D_R) -> 1.099981395 | C18: 1.864633525 | D18: =B18/D_R -> 63.02429147 | E18: =C18/D_R -> 106.8356313 | F18: 43.81133984 | N18: Usually, 1o increment is sufficient
A19: 4 | B19: =FourBar2($B$8,$B$9,$B$10,1,1,A19*D_R) -> 1.085148878 | C19: 1.85108859 | D19: =B19/D_R -> 62.17445087 | E19: =C19/D_R -> 106.0595637 | F19: 43.88511287
A20: 5 | B20: =FourBar2($B$8,$B$9,$B$10,1,1,A20*D_R) -> 1.07024102 | C20: 1.837832996 | D20: =B20/D_R -> 61.32029351 | E20: =C20/D_R -> 105.3000741 | F20: 43.97978061
A21: 6 | B21: =FourBar2($B$8,$B$9,$B$10,1,1,A21*D_R) -> 1.055278556 | C21: 1.824885109 | D21: =B21/D_R -> 60.46300745 | E21: =C21/D_R -> 104.5582149 | F21: 44.09520741
A22: 7 | B22: =FourBar2($B$8,$B$9,$B$10,1,1,A22*D_R) -> 1.0402818 | C22: 1.812262386 | D22: =B22/D_R -> 59.60375664 | E22: =C22/D_R -> 103.8349861 | F22: 44.23122942
A23: 8 | B23: =FourBar2($B$8,$B$9,$B$10,1,1,A23*D_R) -> 1.025270546 | C23: 1.799981285 | D23: =B23/D_R -> 58.74367512 | E23: =C23/D_R -> 103.1313309 | F23: 44.38765574
A24: 9 | B24: =FourBar2($B$8,$B$9,$B$10,1,1,A24*D_R) -> 1.010263969 | C24: 1.788057204 | D24: =B24/D_R -> 57.88386161 | E24: =C24/D_R -> 102.4481313 | F24: 44.5642697 | I24: FourBar2() function is used for the analysis
A25: 10 | B25: =FourBar2($B$8,$B$9,$B$10,1,1,A25*D_R) -> 0.9952805471 | C25: 1.776504412 | D25: =B25/D_R -> 57.02537478 | E25: =C25/D_R -> 101.7862051 | F25: 44.7608303
A26: 11 | B26: =FourBar2($B$8,$B$9,$B$10,1,1,A26*D_R) -> 0.9803379837 | C26: 1.765336009 | D26: =B26/D_R -> 56.16922896 | E26: =C26/D_R -> 101.1463027 | F26: 44.97707376
A27: 12 | B27: =FourBar2($B$8,$B$9,$B$10,1,1,A27*D_R) -> 0.9654531453 | C27: 1.754563889 | D27: =B27/D_R -> 55.31639054 | E27: =C27/D_R -> 100.5291057 | F27: 45.21271517
A28: 13 | B28: =FourBar2($B$8,$B$9,$B$10,1,1,A28*D_R) -> 0.9506420093 | C28: 1.744198718 | D28: =B28/D_R -> 54.46777496 | E28: =C28/D_R -> 99.93522515 | F28: 45.46745018
A29: 14 | B29: =FourBar2($B$8,$B$9,$B$10,1,1,A29*D_R) -> 0.9359196222 | C29: 1.734249922 | D29: =B29/D_R -> 53.62424431 | E29: =C29/D_R -> 99.36520117 | F29: 45.74095686
A30: 15 | B30: =FourBar2($B$8,$B$9,$B$10,1,1,A30*D_R) -> 0.9213000681 | C30: 1.724725692 | D30: =B30/D_R -> 52.78660557 | E30: =C30/D_R -> 98.81950297 | F30: 46.0328974
A31: 16 | B31: =FourBar2($B$8,$B$9,$B$10,1,1,A31*D_R) -> 0.9067964486 | C31: 1.715632988 | D31: =B31/D_R -> 51.95560938 | E31: =C31/D_R -> 98.29852942 | F31: 46.34292004
A32: 17 | B32: =FourBar2($B$8,$B$9,$B$10,1,1,A32*D_R) -> 0.8924208712 | C32: 1.706977566 | D32: =B32/D_R -> 51.13194947 | E32: =C32/D_R -> 97.80261025 | F32: 46.67066078
A33: 18 | B33: =FourBar2($B$8,$B$9,$B$10,1,1,A33*D_R) -> 0.8781844482 | C33: 1.698764003 | D33: =B33/D_R -> 50.31626252 | E33: =C33/D_R -> 97.33200778 | F33: 47.01574526
A34: 19 | B34: =FourBar2($B$8,$B$9,$B$10,1,1,A34*D_R) -> 0.8640973027 | C34: 1.690995738 | D34: =B34/D_R -> 49.50912853 | E34: =C34/D_R -> 96.88691895 | F34: 47.37779042
A35: 20 | B35: =FourBar2($B$8,$B$9,$B$10,1,1,A35*D_R) -> 0.8501685831 | C35: 1.683675111 | D35: =B35/D_R -> 48.71107169 | E35: =C35/D_R -> 96.46747792 | F35: 47.75640624
A36: 21 | B36: =FourBar2($B$8,$B$9,$B$10,1,1,A36*D_R) -> 0.8364064843 | C36: 1.676803416 | D36: =B36/D_R -> 47.92256151 | E36: =C36/D_R -> 96.07375883 | F36: 48.15119732
A37: 22 | B37: =FourBar2($B$8,$B$9,$B$10,1,1,A37*D_R) -> 0.8228182743 | C37: 1.670380955 | D37: =B37/D_R -> 47.14401442 | E37: =C37/D_R -> 95.70577889 | F37: 48.56176447
A38: 23 | B38: =FourBar2($B$8,$B$9,$B$10,1,1,A38*D_R) -> 0.8094103263 | C38: 1.664407091 | D38: =B38/D_R -> 46.37579559 | E38: =C38/D_R -> 95.36350168 | F38: 48.98770609
A39: 24 | B39: =FourBar2($B$8,$B$9,$B$10,1,1,A39*D_R) -> 0.7961881546 | C39: 1.658880311 | D39: =B39/D_R -> 45.61822096 | E39: =C39/D_R -> 95.04684055 | F39: 49.42861959
A40: 25 | B40: =FourBar2($B$8,$B$9,$B$10,1,1,A40*D_R) -> 0.783156454 | C40: 1.653798289 | D40: =B40/D_R -> 44.87155951 | E40: =C40/D_R -> 94.75566214 | F40: 49.88410263
A41: 26 | B41: =FourBar2($B$8,$B$9,$B$10,1,1,A41*D_R) -> 0.7703191418 | C41: 1.649157945 | D41: =B41/D_R -> 44.1360357 | E41: =C41/D_R -> 94.48978999 | F41: 50.35375429
A42: 27 | B42: =FourBar2($B$8,$B$9,$B$10,1,1,A42*D_R) -> 0.7576794012 | C42: 1.644955507 | D42: =B42/D_R -> 43.41183191 | E42: =C42/D_R -> 94.24900804 | F42: 50.83717613
A43: 28 | B43: =FourBar2($B$8,$B$9,$B$10,1,1,A43*D_R) -> 0.7452397264 | C43: 1.641186576 | D43: =B43/D_R -> 42.69909105 | E43: =C43/D_R -> 94.03306421 | F43: 51.33397316
A44: 29 | B44: =FourBar2($B$8,$B$9,$B$10,1,1,A44*D_R) -> 0.7330019678 | C44: 1.637846184 | D44: =B44/D_R -> 41.99791913 | E44: =C44/D_R -> 93.84167385 | F44: 51.84375471
A45: 30 | B45: =FourBar2($B$8,$B$9,$B$10,1,1,A45*D_R) -> 0.7209673776 | C45: 1.634928854 | D45: =B45/D_R -> 41.30838791 | E45: =C45/D_R -> 93.67452312 | F45: 52.36613521
A46: 31 | B46: =FourBar2($B$8,$B$9,$B$10,1,1,A46*D_R) -> 0.7091366544 | C46: 1.632428654 | D46: =B46/D_R -> 40.6305374 | E46: =C46/D_R -> 93.53127225 | F46: 52.90073485
A47: 32 | B47: =FourBar2($B$8,$B$9,$B$10,1,1,A47*D_R) -> 0.6975099876 | C47: 1.630339258 | D47: =B47/D_R -> 39.96437846 | E47: =C47/D_R -> 93.41155865 | F47: 53.4471802
A48: 33 | B48: =FourBar2($B$8,$B$9,$B$10,1,1,A48*D_R) -> 0.6860871001 | C48: 1.62865399 | D48: =B48/D_R -> 39.30989521 | E48: =C48/D_R -> 93.31499992 | F48: 54.00510471
A49: 34 | B49: =FourBar2($B$8,$B$9,$B$10,1,1,A49*D_R) -> 0.6748672901 | C49: 1.627365879 | D49: =B49/D_R -> 38.66704745 | E49: =C49/D_R -> 93.24119659 | F49: 54.57414914
A50: 35 | B50: =FourBar2($B$8,$B$9,$B$10,1,1,A50*D_R) -> 0.6638494707 | C50: 1.626467702 | D50: =B50/D_R -> 38.0357729 | E50: =C50/D_R -> 93.18973483 | F50: 55.15396193
A51: 36 | B51: =FourBar2($B$8,$B$9,$B$10,1,1,A51*D_R) -> 0.6530322081 | C51: 1.625952028 | D51: =B51/D_R -> 37.41598941 | E51: =C51/D_R -> 93.1601889 | F51: 55.74419949
A52: 37 | B52: =FourBar2($B$8,$B$9,$B$10,1,1,A52*D_R) -> 0.6424137577 | C52: 1.625811259 | D52: =B52/D_R -> 36.80759702 | E52: =C52/D_R -> 93.15212345 | F52: 56.34452643
A53: 38 | B53: =FourBar2($B$8,$B$9,$B$10,1,1,A53*D_R) -> 0.6319920983 | C53: 1.626037667 | D53: =B53/D_R -> 36.21047992 | E53: =C53/D_R -> 93.16509564 | F53: 56.95461572
A54: 39 | B54: =FourBar2($B$8,$B$9,$B$10,1,1,A54*D_R) -> 0.621764964 | C54: 1.626623425 | D54: =B54/D_R -> 35.62450829 | E54: =C54/D_R -> 93.19865713 | F54: 57.57414884
A55: 40 | B55: =FourBar2($B$8,$B$9,$B$10,1,1,A55*D_R) -> 0.6117298743 | C55: 1.627560644 | D55: =B55/D_R -> 35.04954 | E55: =C55/D_R -> 93.25235582 | F55: 58.20281582
A56: 41 | B56: =FourBar2($B$8,$B$9,$B$10,1,1,A56*D_R) -> 0.6018841623 | C56: 1.628841397 | D56: =B56/D_R -> 34.48542225 | E56: =C56/D_R -> 93.32573754 | F56: 58.84031528
A57: 42 | B57: =FourBar2($B$8,$B$9,$B$10,1,1,A57*D_R) -> 0.5922250003 | C57: 1.630457746 | D57: =B57/D_R -> 33.93199304 | E57: =C57/D_R -> 93.41834751 | F57: 59.48635447
A58: 43 | B58: =FourBar2($B$8,$B$9,$B$10,1,1,A58*D_R) -> 0.5827494241 | C58: 1.632401766 | D58: =B58/D_R -> 33.38908251 | E58: =C58/D_R -> 93.52973167 | F58: 60.14064916
A59: 44 | B59: =FourBar2($B$8,$B$9,$B$10,1,1,A59*D_R) -> 0.573454355 | C59: 1.634665567 | D59: =B59/D_R -> 32.85651428 | E59: =C59/D_R -> 93.65943788 | F59: 60.8029236
A60: 45 | B60: =FourBar2($B$8,$B$9,$B$10,1,1,A60*D_R) -> 0.56433662 | C60: 1.637241308 | D60: =B60/D_R -> 32.33410655 | E60: =C60/D_R -> 93.807017 | F60: 61.47291044
A61: 46 | B61: =FourBar2($B$8,$B$9,$B$10,1,1,A61*D_R) -> 0.5553929707 | C61: 1.64012122 | D61: =B61/D_R -> 31.82167319 | E61: =C61/D_R -> 93.9720238 | F61: 62.15035061
A62: 47 | B62: =FourBar2($B$8,$B$9,$B$10,1,1,A62*D_R) -> 0.5466200998 | C62: 1.643297615 | D62: =B62/D_R -> 31.31902471 | E62: =C62/D_R -> 94.15401785 | F62: 62.83499314
A63: 48 | B63: =FourBar2($B$8,$B$9,$B$10,1,1,A63*D_R) -> 0.5380146565 | C63: 1.646762903 | D63: =B63/D_R -> 30.82596913 | E63: =C63/D_R -> 94.35256419 | F63: 63.52659506
A64: 49 | B64: =FourBar2($B$8,$B$9,$B$10,1,1,A64*D_R) -> 0.5295732606 | C64: 1.650509598 | D64: =B64/D_R -> 30.34231278 | E64: =C64/D_R -> 94.567234 | F64: 64.22492122
A65: 50 | B65: =FourBar2($B$8,$B$9,$B$10,1,1,A65*D_R) -> 0.521292515 | C65: 1.654530332 | D65: =B65/D_R -> 29.867861 | E65: =C65/D_R -> 94.79760509 | F65: 64.92974409
A66: 51 | B66: =FourBar2($B$8,$B$9,$B$10,1,1,A66*D_R) -> 0.5131690167 | C66: 1.658817861 | D66: =B66/D_R -> 29.40241883 | E66: =C66/D_R -> 95.04326243 | F66: 65.64084359
A67: 52 | B67: =FourBar2($B$8,$B$9,$B$10,1,1,A67*D_R) -> 0.5051993668 | C67: 1.663365073 | D67: =B67/D_R -> 28.94579153 | E67: =C67/D_R -> 95.30379844 | F67: 66.35800691
A68: 53 | B68: =FourBar2($B$8,$B$9,$B$10,1,1,A68*D_R) -> 0.4973801799 | C68: 1.668164989 | D68: =B68/D_R -> 28.49778512 | E68: =C68/D_R -> 95.5788134 | F68: 67.08102828
A69: 54 | B69: =FourBar2($B$8,$B$9,$B$10,1,1,A69*D_R) -> 0.4897080915 | C69: 1.673210774 | D69: =B69/D_R -> 28.05820683 | E69: =C69/D_R -> 95.86791561 | F69: 67.80970878
A70: 55 | B70: =FourBar2($B$8,$B$9,$B$10,1,1,A70*D_R) -> 0.4821797652 | C70: 1.678495737 | D70: =B70/D_R -> 27.62686551 | E70: =C70/D_R -> 96.17072165 | F70: 68.54385614
A71: 56 | B71: =FourBar2($B$8,$B$9,$B$10,1,1,A71*D_R) -> 0.4747918988 | C71: 1.684013331 | D71: =B71/D_R -> 27.20357195 | E71: =C71/D_R -> 96.48685649 | F71: 69.28328454
A72: 57 | B72: =FourBar2($B$8,$B$9,$B$10,1,1,A72*D_R) -> 0.4675412298 | C72: 1.689757159 | D72: =B72/D_R -> 26.78813922 | E72: =C72/D_R -> 96.81595358 | F72: 70.02781437
A73: 58 | B73: =FourBar2($B$8,$B$9,$B$10,1,1,A73*D_R) -> 0.4604245398 | C73: 1.695720973 | D73: =B73/D_R -> 26.38038291 | E73: =C73/D_R -> 97.15765497 | F73: 70.77727206
A74: 59 | B74: =FourBar2($B$8,$B$9,$B$10,1,1,A74*D_R) -> 0.4534386583 | C74: 1.701898675 | D74: =B74/D_R -> 25.98012139 | E74: =C74/D_R -> 97.51161125 | F74: 71.53148986
A75: 60 | B75: =FourBar2($B$8,$B$9,$B$10,1,1,A75*D_R) -> 0.4465804666 | C75: 1.708284317 | D75: =B75/D_R -> 25.58717595 | E75: =C75/D_R -> 97.87748158 | F75: 72.29030563
A76: 61 | B76: =FourBar2($B$8,$B$9,$B$10,1,1,A76*D_R) -> 0.4398469001 | C76: 1.714872099 | D76: =B76/D_R -> 25.20137101 | E76: =C76/D_R -> 98.25493366 | F76: 73.05356266
A77: 62 | B77: =FourBar2($B$8,$B$9,$B$10,1,1,A77*D_R) -> 0.4332349511 | C77: 1.721656368 | D77: =B77/D_R -> 24.82253424 | E77: =C77/D_R -> 98.64364367 | F77: 73.82110944
A78: 63 | B78: =FourBar2($B$8,$B$9,$B$10,1,1,A78*D_R) -> 0.4267416704 | C78: 1.72863162 | D78: =B78/D_R -> 24.45049666 | E78: =C78/D_R -> 99.04329615 | F78: 74.5927995
A79: 64 | B79: =FourBar2($B$8,$B$9,$B$10,1,1,A79*D_R) -> 0.4203641689 | C79: 1.735792493 | D79: =B79/D_R -> 24.08509274 | E79: =C79/D_R -> 99.45358393 | F79: 75.3684912
A80: 65 | B80: =FourBar2($B$8,$B$9,$B$10,1,1,A80*D_R) -> 0.4140996188 | C80: 1.743133768 | D80: =B80/D_R -> 23.72616046 | E80: =C80/D_R -> 99.874208 | F80: =E80-D80 -> 76.14804755
A81: 66 | B81: =FourBar2($B$8,$B$9,$B$10,1,1,A81*D_R) -> 0.4079452545 | C81: 1.750650366 | D81: =B81/D_R -> 23.37354135 | E81: =C81/D_R -> 100.3048774 | F81: 76.93133603
A82: 67 | B82: =FourBar2($B$8,$B$9,$B$10,1,1,A82*D_R) -> 0.401898373 | C82: 1.758337348 | D82: =B82/D_R -> 23.02708057 | E82: =C82/D_R -> 100.745309 | F82: 77.71822842
A83: 68 | B83: =FourBar2($B$8,$B$9,$B$10,1,1,A83*D_R) -> 0.3959563346 | C83: 1.766189906 | D83: =B83/D_R -> 22.68662685 | E83: =C83/D_R -> 101.1952274 | F83: 78.5086006
A84: 69 | B84: =FourBar2($B$8,$B$9,$B$10,1,1,A84*D_R) -> 0.3901165626 | C84: 1.774203367 | D84: =B84/D_R -> 22.35203256 | E84: =C84/D_R -> 101.654365 | F84: 79.3023324
A85: 70 | B85: =FourBar2($B$8,$B$9,$B$10,1,1,A85*D_R) -> 0.3843765435 | C85: 1.782373187 | D85: =B85/D_R -> 22.02315368 | E85: =C85/D_R -> 102.1224611 | F85: 80.09930745
A86: 71 | B86: =FourBar2($B$8,$B$9,$B$10,1,1,A86*D_R) -> 0.3787338265 | C86: 1.790694946 | D86: =B86/D_R -> 21.69984981 | E86: =C86/D_R -> 102.5992628 | F86: 80.89941301
A87: 72 | B87: =FourBar2($B$8,$B$9,$B$10,1,1,A87*D_R) -> 0.3731860234 | C87: 1.79916435 | D87: =B87/D_R -> 21.38198411 | E87: =C87/D_R -> 103.0845239 | F87: 81.70253978
A88: 73 | B88: =FourBar2($B$8,$B$9,$B$10,1,1,A88*D_R) -> 0.367730808 | C88: 1.807777222 | D88: =B88/D_R -> 21.06942329 | E88: =C88/D_R -> 103.5780051 | F88: 82.50858182
A89: 74 | B89: =FourBar2($B$8,$B$9,$B$10,1,1,A89*D_R) -> 0.3623659153 | C89: 1.816529504 | D89: =B89/D_R -> 20.76203759 | E89: =C89/D_R -> 104.0794739 | F89: 83.31743635
A90: 75 | B90: =FourBar2($B$8,$B$9,$B$10,1,1,A90*D_R) -> 0.3570891411 | C90: 1.82541725 | D90: =B90/D_R -> 20.45970069 | E90: =C90/D_R -> 104.5887043 | F90: 84.1290036
A91: 76 | B91: =FourBar2($B$8,$B$9,$B$10,1,1,A91*D_R) -> 0.3518983408 | C91: 1.834436626 | D91: =B91/D_R -> 20.16228975 | E91: =C91/D_R -> 105.1054765 | F91: 84.94318672
A92: 77 | B92: =FourBar2($B$8,$B$9,$B$10,1,1,A92*D_R) -> 0.346791429 | C92: 1.843583904 | D92: =B92/D_R -> 19.86968525 | E92: =C92/D_R -> 105.6295769 | F92: 85.75989162
A93: 78 | B93: =FourBar2($B$8,$B$9,$B$10,1,1,A93*D_R) -> 0.3417663781 | C93: 1.85285546 | D93: =B93/D_R -> 19.58177104 | E93: =C93/D_R -> 106.1607979 | F93: 86.57902684
A94: 79 | B94: =FourBar2($B$8,$B$9,$B$10,1,1,A94*D_R) -> 0.3368212178 | C94: 1.86224777 | D94: =B94/D_R -> 19.29843423 | E94: =C94/D_R -> 106.6989376 | F94: 87.40050341
A95: 80 | B95: =FourBar2($B$8,$B$9,$B$10,1,1,A95*D_R) -> 0.331954034 | C95: 1.87175741 | D95: =B95/D_R -> 19.01956514 | E95: =C95/D_R -> 107.2437999 | F95: 88.22423474
A96: 81 | B96: =FourBar2($B$8,$B$9,$B$10,1,1,A96*D_R) -> 0.3271629676 | C96: 1.881381049 | D96: =B96/D_R -> 18.74505726 | E96: =C96/D_R -> 107.7951938 | F96: 89.05013652
A97: 82 | B97: =FourBar2($B$8,$B$9,$B$10,1,1,A97*D_R) -> 0.3224462136 | C97: 1.891115448 | D97: =B97/D_R -> 18.47480716 | E97: =C97/D_R -> 108.3529337 | F97: 89.87812657
A98: 83 | B98: =FourBar2($B$8,$B$9,$B$10,1,1,A98*D_R) -> 0.3178020202 | C98: 1.900957455 | D98: =B98/D_R -> 18.20871448 | E98: =C98/D_R -> 108.9168392 | F98: 90.70812474
A99: 84 | B99: =FourBar2($B$8,$B$9,$B$10,1,1,A99*D_R) -> 0.3132286876 | C99: 1.910904006 | D99: =B99/D_R -> 17.94668182 | E99: =C99/D_R -> 109.4867346 | F99: 91.54005279
A100: 85 | B100: =FourBar2($B$8,$B$9,$B$10,1,1,A100*D_R) -> 0.3087245671 | C100: 1.920952119 | D100: =B100/D_R -> 17.68861473 | E100: =C100/D_R -> 110.062449 | F100: 92.37383431
A101: 86 | B101: =FourBar2($B$8,$B$9,$B$10,1,1,A101*D_R) -> 0.30428806 | C101: 1.931098889 | D101: =B101/D_R -> 17.4344216 | E101: =C101/D_R -> 110.6438162 | F101: 93.20939457
A102: 87 | B102: =FourBar2($B$8,$B$9,$B$10,1,1,A102*D_R) -> 0.2999176167 | C102: 1.941341492 | D102: =B102/D_R -> 17.18401364 | E102: =C102/D_R -> 111.2306741 | F102: 94.04666045
A103: 88 | B103: =FourBar2($B$8,$B$9,$B$10,1,1,A103*D_R) -> 0.2956117356 | C103: 1.951677176 | D103: =B103/D_R -> 16.93730482 | E103: =C103/D_R -> 111.8228651 | F103: 94.88556032
A104: 89 | B104: =FourBar2($B$8,$B$9,$B$10,1,1,A104*D_R) -> 0.2913689622 | C104: 1.96210326 | D104: =B104/D_R -> 16.69421182 | E104: =C104/D_R -> 112.4202358 | F104: 95.72602396
A105: 90 | B105: =FourBar2($B$8,$B$9,$B$10,1,1,A105*D_R) -> 0.2871878883 | C105: 1.972617134 | D105: =B105/D_R -> 16.45465393 | E105: =C105/D_R -> 113.0226364 | F105: 96.56798243
A106: 91 | B106: =FourBar2($B$8,$B$9,$B$10,1,1,A106*D_R) -> 0.2830671508 | C106: 1.983216251 | D106: =B106/D_R -> 16.21855306 | E106: =C106/D_R -> 113.629921 | F106: 97.41136798
A107: 92 | B107: =FourBar2($B$8,$B$9,$B$10,1,1,A107*D_R) -> 0.2790054312 | C107: 1.993898131 | D107: =B107/D_R -> 15.98583367 | E107: =C107/D_R -> 114.2419477 | F107: 98.25611399
A108: 93 | B108: =FourBar2($B$8,$B$9,$B$10,1,1,A108*D_R) -> 0.2750014544 | C108: 2.004660352 | D108: =B108/D_R -> 15.75642269 | E108: =C108/D_R -> 114.8585775 | F108: 99.10215482
A109: 94 | B109: =FourBar2($B$8,$B$9,$B$10,1,1,A109*D_R) -> 0.2710539881 | C109: 2.015500553 | D109: =B109/D_R -> 15.53024954 | E109: =C109/D_R -> 115.4796753 | F109: 99.94942575
A110: 95 | B110: =FourBar2($B$8,$B$9,$B$10,1,1,A110*D_R) -> 0.2671618421 | C110: 2.026416428 | D110: =B110/D_R -> 15.307246 | E110: =C110/D_R -> 116.1051089 | F110: 100.7978629
A111: 96 | B111: =FourBar2($B$8,$B$9,$B$10,1,1,A111*D_R) -> 0.2633238675 | C111: 2.037405726 | D111: =B111/D_R -> 15.08734625 | E111: =C111/D_R -> 116.7347492 | F111: 101.647403
A112: 97 | B112: =FourBar2($B$8,$B$9,$B$10,1,1,A112*D_R) -> 0.2595389559 | C112: 2.048466245 | D112: =B112/D_R -> 14.87048679 | E112: =C112/D_R -> 117.3684703 | F112: 102.4979835
A113: 98 | B113: =FourBar2($B$8,$B$9,$B$10,1,1,A113*D_R) -> 0.255806039 | C113: 2.059595836 | D113: =B113/D_R -> 14.65660641 | E113: =C113/D_R -> 118.0061489 | F113: 103.3495425
A114: 99 | B114: =FourBar2($B$8,$B$9,$B$10,1,1,A114*D_R) -> 0.2521240878 | C114: 2.070792392 | D114: =B114/D_R -> 14.44564614 | E114: =C114/D_R -> 118.6476643 | F114: 104.2020182
A115: 100 | B115: =FourBar2($B$8,$B$9,$B$10,1,1,A115*D_R) -> 0.2484921122 | C115: 2.082053856 | D115: =B115/D_R -> 14.23754927 | E115: =C115/D_R -> 119.2928987 | F115: 105.0553494
A116: 101 | B116: =FourBar2($B$8,$B$9,$B$10,1,1,A116*D_R) -> 0.2449091607 | C116: 2.093378209 | D116: =B116/D_R -> 14.03226127 | E116: =C116/D_R -> 119.9417363 | F116: 105.909475
A117: 102 | B117: =FourBar2($B$8,$B$9,$B$10,1,1,A117*D_R) -> 0.2413743195 | C117: 2.104763475 | D117: =B117/D_R -> 13.82972979 | E117: =C117/D_R -> 120.594064 | F117: 106.7643342
A118: 103 | B118: =FourBar2($B$8,$B$9,$B$10,1,1,A118*D_R) -> 0.2378867126 | C118: 2.116207715 | D118: =B118/D_R -> 13.62990463 | E118: =C118/D_R -> 121.2497707 | F118: 107.619866
A119: 104 | B119: =FourBar2($B$8,$B$9,$B$10,1,1,A119*D_R) -> 0.2344455011 | C119: 2.127709026 | D119: =B119/D_R -> 13.43273774 | E119: =C119/D_R -> 121.9087472 | F119: 108.4760095
A120: 105 | B120: =FourBar2($B$8,$B$9,$B$10,1,1,A120*D_R) -> 0.2310498834 | C120: 2.139265539 | D120: =B120/D_R -> 13.23818318 | E120: =C120/D_R -> 122.5708866 | F120: 109.3327035
A121: 106 | B121: =FourBar2($B$8,$B$9,$B$10,1,1,A121*D_R) -> 0.2276990946 | C121: 2.150875416 | D121: =B121/D_R -> 13.04619712 | E121: =C121/D_R -> 123.2360836 | F121: 110.1898865
A122: 107 | B122: =FourBar2($B$8,$B$9,$B$10,1,1,A122*D_R) -> 0.2243924068 | C122: 2.162536849 | D122: =B122/D_R -> 12.85673786 | E122: =C122/D_R -> 123.9042345 | F122: 111.0474966
A123: 108 | B123: =FourBar2($B$8,$B$9,$B$10,1,1,A123*D_R) -> 0.2211291284 | C123: 2.174248057 | D123: =B123/D_R -> 12.66976579 | E123: =C123/D_R -> 124.5752373 | F123: 111.9054715
A124: 109 | B124: =FourBar2($B$8,$B$9,$B$10,1,1,A124*D_R) -> 0.2179086052 | C124: 2.186007285 | D124: =B124/D_R -> 12.4852434 | E124: =C124/D_R -> 125.2489914 | F124: 112.763748
A125: 110 | B125: =FourBar2($B$8,$B$9,$B$10,1,1,A125*D_R) -> 0.2147302193 | C125: 2.1978128 | D125: =B125/D_R -> 12.3031353 | E125: =C125/D_R -> 125.9253976 | F125: 113.6222623
A126: 111 | B126: =FourBar2($B$8,$B$9,$B$10,1,1,A126*D_R) -> 0.2115933904 | C126: 2.20966289 | D126: =B126/D_R -> 12.12340824 | E126: =C126/D_R -> 126.6043577 | F126: 114.4809495
A127: 112 | B127: =FourBar2($B$8,$B$9,$B$10,1,1,A127*D_R) -> 0.2084975753 | C127: 2.221555861 | D127: =B127/D_R -> 11.9460311 | E127: =C127/D_R -> 127.2857748 | F127: 115.3397437
A128: 113 | B128: =FourBar2($B$8,$B$9,$B$10,1,1,A128*D_R) -> 0.2054422686 | C128: 2.233490037 | D128: =B128/D_R -> 11.77097493 | E128: =C128/D_R -> 127.9695527 | F128: 116.1985778
A129: 114 | B129: =FourBar2($B$8,$B$9,$B$10,1,1,A129*D_R) -> 0.2024270035 | C129: 2.245463753 | D129: =B129/D_R -> 11.59821296 | E129: =C129/D_R -> 128.6555961 | F129: 117.0573832
A130: 115 | B130: =FourBar2($B$8,$B$9,$B$10,1,1,A130*D_R) -> 0.1994513518 | C130: 2.25747536 | D130: =B130/D_R -> 11.42772068 | E130: =C130/D_R -> 129.3438105 | F130: 117.9160898
A131: 116 | B131: =FourBar2($B$8,$B$9,$B$10,1,1,A131*D_R) -> 0.1965149252 | C131: 2.269523213 | D131: =B131/D_R -> 11.25947583 | E131: =C131/D_R -> 130.0341016 | F131: 118.7746258
A132: 117 | B132: =FourBar2($B$8,$B$9,$B$10,1,1,A132*D_R) -> 0.1936173756 | C132: 2.281605677 | D132: =B132/D_R -> 11.09345847 | E132: =C132/D_R -> 130.7263758 | F132: 119.6329173
A133: 118 | B133: =FourBar2($B$8,$B$9,$B$10,1,1,A133*D_R) -> 0.1907583968 | C133: 2.293721119 | D133: =B133/D_R -> 10.92965104 | E133: =C133/D_R -> 131.4205395 | F133: 120.4908885
A134: 119 | B134: =FourBar2($B$8,$B$9,$B$10,1,1,A134*D_R) -> 0.1879377247 | C134: 2.305867909 | D134: =B134/D_R -> 10.76803844 | E134: =C134/D_R -> 132.1164993 | F134: 121.3484608
A135: 120 | B135: =FourBar2($B$8,$B$9,$B$10,1,1,A135*D_R) -> 0.1851551397 | C135: 2.318044414 | D135: =B135/D_R -> 10.60860806 | E135: =C135/D_R -> 132.8141616 | F135: 122.2055536
A136: 121 | B136: =FourBar2($B$8,$B$9,$B$10,1,1,A136*D_R) -> 0.1824104671 | C136: 2.330248996 | D136: =B136/D_R -> 10.4513499 | E136: =C136/D_R -> 133.5134327 | F136: 123.0620828
A137: 122 | B137: =FourBar2($B$8,$B$9,$B$10,1,1,A137*D_R) -> 0.1797035795 | C137: 2.342480012 | D137: =B137/D_R -> 10.29625667 | E137: =C137/D_R -> 134.2142183 | F137: 123.9179616
A138: 123 | B138: =FourBar2($B$8,$B$9,$B$10,1,1,A138*D_R) -> 0.1770343984 | C138: 2.354735804 | D138: =B138/D_R -> 10.14332386 | E138: =C138/D_R -> 134.9164235 | F138: 124.7730996
A139: 124 | B139: =FourBar2($B$8,$B$9,$B$10,1,1,A139*D_R) -> 0.1744028964 | C139: 2.367014704 | D139: =B139/D_R -> 9.992549896 | E139: =C139/D_R -> 135.6199526 | F139: 125.6274027
A140: 125 | B140: =FourBar2($B$8,$B$9,$B$10,1,1,A140*D_R) -> 0.171809099 | C140: 2.379315021 | D140: =B140/D_R -> 9.843936253 | E140: =C140/D_R -> 136.3247089 | F140: 126.4807726
A141: 126 | B141: =FourBar2($B$8,$B$9,$B$10,1,1,A141*D_R) -> 0.1692530879 | C141: 2.391635047 | D141: =B141/D_R -> 9.697487609 | E141: =C141/D_R -> 137.0305943 | F141: 127.3331067
A142: 127 | B142: =FourBar2($B$8,$B$9,$B$10,1,1,A142*D_R) -> 0.1667350037 | C142: 2.403973043 | D142: =B142/D_R -> 9.553212009 | E142: =C142/D_R -> 137.7375094 | F142: 128.1842974
A143: 128 | B143: =FourBar2($B$8,$B$9,$B$10,1,1,A143*D_R) -> 0.1642550485 | C143: 2.416327242 | D143: =B143/D_R -> 9.411121045 | E143: =C143/D_R -> 138.4453529 | F143: 129.0342318
A144: 129 | B144: =FourBar2($B$8,$B$9,$B$10,1,1,A144*D_R) -> 0.1618134903 | C144: 2.428695842 | D144: =B144/D_R -> 9.271230064 | E144: =C144/D_R -> 139.1540215 | F144: =E144-D144 -> 129.8827914
A145: 130 | B145: =FourBar2($B$8,$B$9,$B$10,1,1,A145*D_R) -> 0.1594106662 | C145: 2.441076999 | D145: =B145/D_R -> 9.133558383 | E145: =C145/D_R -> 139.8634095 | F145: 130.7298511
A146: 131 | B146: =FourBar2($B$8,$B$9,$B$10,1,1,A146*D_R) -> 0.1570469871 | C146: 2.453468823 | D146: =B146/D_R -> 8.998129547 | E146: =C146/D_R -> 140.5734087 | F146: 131.5752791
A147: 132 | B147: =FourBar2($B$8,$B$9,$B$10,1,1,A147*D_R) -> 0.1547229424 | C147: 2.465869372 | D147: =B147/D_R -> 8.864971594 | E147: =C147/D_R -> 141.2839078 | F147: 132.4189362
A148: 133 | B148: =FourBar2($B$8,$B$9,$B$10,1,1,A148*D_R) -> 0.1524391052 | C148: 2.478276645 | D148: =B148/D_R -> 8.734117364 | E148: =C148/D_R -> 141.9947922 | F148: 133.2606749
A149: 134 | B149: =FourBar2($B$8,$B$9,$B$10,1,1,A149*D_R) -> 0.1501961384 | C149: 2.490688578 | D149: =B149/D_R -> 8.60560483 | E149: =C149/D_R -> 142.7059436 | F149: 134.1003388
A150: 135 | B150: =FourBar2($B$8,$B$9,$B$10,1,1,A150*D_R) -> 0.1479948007 | C150: 2.503103029 | D150: =B150/D_R -> 8.479477472 | E150: =C150/D_R -> 143.4172393 | F150: 134.9377618
A151: 136 | B151: =FourBar2($B$8,$B$9,$B$10,1,1,A151*D_R) -> 0.1458359543 | C151: 2.515517779 | D151: =B151/D_R -> 8.355784683 | E151: =C151/D_R -> 144.128552 | F151: 135.7727673
A152: 137 | B152: =FourBar2($B$8,$B$9,$B$10,1,1,A152*D_R) -> 0.1437205722 | C152: 2.527930514 | D152: =B152/D_R -> 8.234582219 | E152: =C152/D_R -> 144.8397494 | F152: 136.6051671
A153: 138 | B153: =FourBar2($B$8,$B$9,$B$10,1,1,A153*D_R) -> 0.1416497475 | C153: 2.540338824 | D153: =B153/D_R -> 8.115932702 | E153: =C153/D_R -> 145.5506931 | F153: 137.4347604
A154: 139 | B154: =FourBar2($B$8,$B$9,$B$10,1,1,A154*D_R) -> 0.1396247025 | C154: 2.552740183 | D154: =B154/D_R -> 7.999906171 | E154: =C154/D_R -> 146.2612387 | F154: 138.2613325
A155: 140 | B155: =FourBar2($B$8,$B$9,$B$10,1,1,A155*D_R) -> 0.1376467997 | C155: 2.565131946 | D155: =B155/D_R -> 7.886580685 | E155: =C155/D_R -> 146.9712344 | F155: 139.0846537
A156: 141 | B156: =FourBar2($B$8,$B$9,$B$10,1,1,A156*D_R) -> 0.1357175532 | C156: 2.57751133 | D156: =B156/D_R -> 7.776043004 | E156: =C156/D_R -> 147.6805208 | F156: 139.9044778
A157: 142 | B157: =FourBar2($B$8,$B$9,$B$10,1,1,A157*D_R) -> 0.133838642 | C157: 2.5898754 | D157: =B157/D_R -> 7.668389323 | E157: =C157/D_R -> 148.3889299 | F157: 140.7205405
A158: 143 | B158: =FourBar2($B$8,$B$9,$B$10,1,1,A158*D_R) -> 0.1320119242 | C158: 2.602221057 | D158: =B158/D_R -> 7.5637261 | E158: =C158/D_R -> 149.0962839 | F158: 141.5325578
A159: 144 | B159: =FourBar2($B$8,$B$9,$B$10,1,1,A159*D_R) -> 0.1302394525 | C159: 2.614545019 | D159: =B159/D_R -> 7.462170952 | E159: =C159/D_R -> 149.8023949 | F159: 142.340224
A160: 145 | B160: =FourBar2($B$8,$B$9,$B$10,1,1,A160*D_R) -> 0.128523492 | C160: 2.626843801 | D160: =B160/D_R -> 7.363853661 | E160: =C160/D_R -> 150.5070632 | F160: 143.1432096
A161: 146 | B161: =FourBar2($B$8,$B$9,$B$10,1,1,A161*D_R) -> 0.1268665394 | C161: 2.639113697 | D161: =B161/D_R -> 7.268917268 | E161: =C161/D_R -> 151.2100765 | F161: 143.9411592
A162: 147 | B162: =FourBar2($B$8,$B$9,$B$10,1,1,A162*D_R) -> 0.1252713437 | C162: 2.651350754 | D162: =B162/D_R -> 7.177519286 | E162: =C162/D_R -> 151.9112082 | F162: 144.7336889
A163: 148 | B163: =FourBar2($B$8,$B$9,$B$10,1,1,A163*D_R) -> 0.1237409298 | C163: 2.663550751 | D163: =B163/D_R -> 7.089833033 | E163: =C163/D_R -> 152.6102165 | F163: 145.5203835
A164: 149 | B164: =FourBar2($B$8,$B$9,$B$10,1,1,A164*D_R) -> 0.1222786242 | C164: 2.675709169 | D164: =B164/D_R -> 7.00604909 | E164: =C164/D_R -> 153.3068426 | F164: 146.3007935
A165: 150 | B165: =FourBar2($B$8,$B$9,$B$10,1,1,A165*D_R) -> 0.1208880823 | C165: 2.687821162 | D165: =B165/D_R -> 6.926376906 | E165: =C165/D_R -> 154.0008087 | F165: 147.0744318
A166: 151 | B166: =FourBar2($B$8,$B$9,$B$10,1,1,A166*D_R) -> 0.1195733195 | C166: 2.699881527 | D166: =B166/D_R -> 6.851046549 | E166: =C166/D_R -> 154.6918167 | F166: 147.8407701
A167: 152 | B167: =FourBar2($B$8,$B$9,$B$10,1,1,A167*D_R) -> 0.1183387444 | C167: 2.711884665 | D167: =B167/D_R -> 6.780310607 | E167: =C167/D_R -> 155.3795459 | F167: 148.5992352
A168: 153 | B168: =FourBar2($B$8,$B$9,$B$10,1,1,A168*D_R) -> 0.1171891947 | C168: 2.723824547 | D168: =B168/D_R -> 6.714446261 | E168: =C168/D_R -> 156.0636507 | F168: 149.3492044
A169: 154 | B169: =FourBar2($B$8,$B$9,$B$10,1,1,A169*D_R) -> 0.1161299762 | C169: 2.735694668 | D169: =B169/D_R -> 6.653757513 | E169: =C169/D_R -> 156.7437585 | F169: 150.090001
A170: 155 | B170: =FourBar2($B$8,$B$9,$B$10,1,1,A170*D_R) -> 0.1151669047 | C170: 2.747488009 | D170: =B170/D_R -> 6.598577576 | E170: =C170/D_R -> 157.4194672 | F170: 150.8208896
A171: 156 | B171: =FourBar2($B$8,$B$9,$B$10,1,1,A171*D_R) -> 0.1143063499 | C171: 2.759196986 | D171: =B171/D_R -> 6.549271422 | E171: =C171/D_R -> 158.0903421 | F171: 151.5410707
A172: 157 | B172: =FourBar2($B$8,$B$9,$B$10,1,1,A172*D_R) -> 0.1135552829 | C172: 2.770813403 | D172: =B172/D_R -> 6.506238451 | E172: =C172/D_R -> 158.7559138 | F172: 152.2496753
A173: 158 | B173: =FourBar2($B$8,$B$9,$B$10,1,1,A173*D_R) -> 0.1129213239 | C173: 2.782328401 | D173: =B173/D_R -> 6.469915274 | E173: =C173/D_R -> 159.4156746 | F173: 152.9457593
A174: 159 | B174: =FourBar2($B$8,$B$9,$B$10,1,1,A174*D_R) -> 0.112412792 | C174: 2.793732405 | D174: =B174/D_R -> 6.440778547 | E174: =C174/D_R -> 160.0690759 | F174: 153.6282974
A175: 160 | B175: =FourBar2($B$8,$B$9,$B$10,1,1,A175*D_R) -> 0.1120387548 | C175: 2.805015074 | D175: =B175/D_R -> 6.419347791 | E175: =C175/D_R -> 160.7155252 | F175: 154.2961774
A176: 161 | B176: =FourBar2($B$8,$B$9,$B$10,1,1,A176*D_R) -> 0.1118090751 | C176: 2.816165251 | D176: =B176/D_R -> 6.406188112 | E176: =C176/D_R -> 161.3543833 | F176: 154.9481952
A177: 162 | B177: =FourBar2($B$8,$B$9,$B$10,1,1,A177*D_R) -> 0.111734455 | C177: 2.827170914 | D177: =B177/D_R -> 6.401912696 | E177: =C177/D_R -> 161.9849614 | F177: 155.5830487
A178: 163 | B178: =FourBar2($B$8,$B$9,$B$10,1,1,A178*D_R) -> 0.1118264725 | C178: 2.838019144 | D178: =B178/D_R -> 6.407184911 | E178: =C178/D_R -> 162.6065191 | F178: 156.1993342
A179: 164 | B179: =FourBar2($B$8,$B$9,$B$10,1,1,A179*D_R) -> 0.1120976078 | C179: 2.848696089 | D179: =B179/D_R -> 6.422719819 | E179: =C179/D_R -> 163.218263 | F179: 156.7955432
A180: 165 | B180: =FourBar2($B$8,$B$9,$B$10,1,1,A180*D_R) -> 0.1125612549 | C180: 2.859186959 | D180: =B180/D_R -> 6.449284843 | E180: =C180/D_R -> 163.8193456 | F180: 157.3700607
A181: 166 | B181: =FourBar2($B$8,$B$9,$B$10,1,1,A181*D_R) -> 0.1132317135 | C181: 2.869476029 | D181: =B181/D_R -> 6.487699291 | E181: =C181/D_R -> 164.4088658 | F181: 157.9211666
A182: 167 | B182: =FourBar2($B$8,$B$9,$B$10,1,1,A182*D_R) -> 0.1141241544 | C182: 2.879546675 | D182: =B182/D_R -> 6.538832387 | E182: =C182/D_R -> 164.9858714 | F182: 158.447039
A183: 168 | B183: =FourBar2($B$8,$B$9,$B$10,1,1,A183*D_R) -> 0.1152545525 | C183: 2.889381447 | D183: =B183/D_R -> 6.603599425 | E183: =C183/D_R -> 165.5493623 | F183: 158.9457629
A184: 169 | B184: =FourBar2($B$8,$B$9,$B$10,1,1,A184*D_R) -> 0.1166395799 | C184: 2.898962172 | D184: =B184/D_R -> 6.682955652 | E184: =C184/D_R -> 166.0982974 | F184: 159.4153418
A185: 170 | B185: =FourBar2($B$8,$B$9,$B$10,1,1,A185*D_R) -> 0.1182964527 | C185: 2.908270119 | D185: =B185/D_R -> 6.777887472 | E185: =C185/D_R -> 166.6316035 | F185: 159.853716
A186: 171 | B186: =FourBar2($B$8,$B$9,$B$10,1,1,A186*D_R) -> 0.1202427251 | C186: 2.917286208 | D186: =B186/D_R -> 6.889400665 | E186: =C186/D_R -> 167.1481874 | F186: 160.2587867
A187: 172 | B187: =FourBar2($B$8,$B$9,$B$10,1,1,A187*D_R) -> 0.1224960278 | C187: 2.925991283 | D187: =B187/D_R -> 7.018505397 | E187: =C187/D_R -> 167.6469514 | F187: 160.628446
A188: 173 | B188: =FourBar2($B$8,$B$9,$B$10,1,1,A188*D_R) -> 0.1250737498 | C188: 2.93436644 | D188: =B188/D_R -> 7.166197994 | E188: =C188/D_R -> 168.1268125 | F188: 160.9606146
A189: 174 | B189: =FourBar2($B$8,$B$9,$B$10,1,1,A189*D_R) -> 0.1279926686 | C189: 2.94239341 | D189: =B189/D_R -> 7.33343972 | E189: =C189/D_R -> 168.5867241 | F189: 161.2532843
A190: 175 | B190: =FourBar2($B$8,$B$9,$B$10,1,1,A190*D_R) -> 0.1312685365 | C190: 2.950054989 | D190: =B190/D_R -> 7.521133123 | E190: =C190/D_R -> 169.0257002 | F190: 161.5045671
A191: 176 | B191: =FourBar2($B$8,$B$9,$B$10,1,1,A191*D_R) -> 0.1349156416 | C191: 2.957335491 | D191: =B191/D_R -> 7.730096852 | E191: =C191/D_R -> 169.4428422 | F191: 161.7127454
A192: 177 | B192: =FourBar2($B$8,$B$9,$B$10,1,1,A192*D_R) -> 0.1389463637 | C192: 2.964221208 | D192: =B192/D_R -> 7.96104022 | E192: =C192/D_R -> 169.8373648 | F192: 161.8763245
A193: 178 | B193: =FourBar2($B$8,$B$9,$B$10,1,1,A193*D_R) -> 0.1433707529 | C193: 2.970700849 | D193: =B193/D_R -> 8.214539045 | E193: =C193/D_R -> 170.2086208 | F193: 161.9940818
A194: 179 | B194: =FourBar2($B$8,$B$9,$B$10,1,1,A194*D_R) -> 0.1481961593 | C194: 2.97676592 | D194: =B194/D_R -> 8.491014469 | E194: =C194/D_R -> 170.5561238 | F194: 162.0651093
A195: 180 | B195: =FourBar2($B$8,$B$9,$B$10,1,1,A195*D_R) -> 0.1534269446 | C195: 2.982411025 | D195: =B195/D_R -> 8.790716387 | E195: =C195/D_R -> 170.8795645 | F195: 162.0888481
A196: 181 | B196: =FourBar2($B$8,$B$9,$B$10,1,1,A196*D_R) -> 0.1590642969 | C196: 2.987634057 | D196: =B196/D_R -> 9.113712882 | E196: =C196/D_R -> 171.1788222 | F196: 162.0651093
A197: 182 | B197: =FourBar2($B$8,$B$9,$B$10,1,1,A197*D_R) -> 0.1651061677 | C197: 2.992436264 | D197: =B197/D_R -> 9.459886581 | E197: =C197/D_R -> 171.4539684 | F197: 161.9940818
A198: 183 | B198: =FourBar2($B$8,$B$9,$B$10,1,1,A198*D_R) -> 0.1715473348 | C198: 2.996822179 | D198: =B198/D_R -> 9.828938273 | E198: =C198/D_R -> 171.7052628 | F198: 161.8763245
A199: 184 | B199: =FourBar2($B$8,$B$9,$B$10,1,1,A199*D_R) -> 0.1783795865 | C199: 3.000799436 | D199: =B199/D_R -> 10.22039746 | E199: =C199/D_R -> 171.9331428 | F199: 161.7127454
A200: 185 | B200: =FourBar2($B$8,$B$9,$B$10,1,1,A200*D_R) -> 0.1855920099 | C200: 3.004378462 | D200: =B200/D_R -> 10.63363888 | E200: =C200/D_R -> 172.138206 | F200: 161.5045671
A201: 186 | B201: =FourBar2($B$8,$B$9,$B$10,1,1,A201*D_R) -> 0.1931713608 | C201: 3.007572102 | D201: =B201/D_R -> 11.0679037 | E201: =C201/D_R -> 172.321188 | F201: 161.2532843
A202: 187 | B202: =FourBar2($B$8,$B$9,$B$10,1,1,A202*D_R) -> 0.2011024847 | C202: 3.010395175 | D202: =B202/D_R -> 11.52232362 | E202: =C202/D_R -> 172.4829382 | F202: 160.9606146
... 173 more rows

Sheet Opt Acc
A1: l | B1: 1.72936471 | G1: =PI()/180 -> 0.01745329252
A2: y | B2: 80 | C2: =B2*D_R -> 1.396263402 | L2: ,
A3: f | B3: 160 | C3: =B3*D_R -> 2.792526803 | L3: ,
B4: t | C4: u | D4: v | E4: ut | G4: Minimization of the maximum acceleration of the output link
B5: =TAN(C3/2) -> 5.67128182 | C5: =TAN((C3-C2)/2) -> 0.8390996312 | D5: =TAN(C2/2) -> 0.8390996312 | E5: =C5*B5 -> 4.758770483
A7: a1 | B7: =C7/$C$7 -> 1 | C7: =SQRT((C5^2+B1^2)/(1+C5^2)) -> 1.472478205
A8: a2 | B8: =C8/$C$7 -> 0.4365345494 | C8: =SQRT(D5^2/(1+D5^2)) -> 0.6427876097 | F8: Max Acc | G8: =MAX(I10,-I11) -> 1.400949972
A9: a3 | B9: 0.7549274446 | C9: =B1*C8 -> 1.111614209
A10: a4 | B10: 0.6992131579 | C10: =SQRT((B5^2+B1^2)/(1+B5^2)) -> 1.029576136 | I10: =MAX(I15:I375) -> 1.400949969
I11: =MIN(I15:I375) -> -1.400949972
A13: q12 | B13: q13 | C13: q14 | D13: q13 | E13: q14 | F13: m | G13: w13 | H13: w14 | I13: a14 | L13: Dead Center design with minimum maximum acceleration of the output link
L14: Type l in between 1 and ut in cell B1 use solver tool to minimize the maximum acceleration in cell G8 by changing B1
A15: 0 | B15: =FourBar2($B$8,$B$9,$B$10,1,1,A15*D_R) -> 1.083293522 | C15: 1.875605302 | D15: =B15/D_R -> 62.06814681 | E15: =C15/D_R -> 107.4642678 | F15: =E15-D15 -> 45.39612102 | G15: =$B$8/$B$9*SIN(A15*D_R-C15)/SIN(C15-B15) -> -0.7747317051 | H15: =$B$8/$B$10*SIN(A15*D_R-B15)/SIN(C15-B15) -> -0.7747317051 | I15: =($B$8/$B$10*COS(A15*D_R-B15)-H15^2*COS(B15-C15)+$B$9/$B$10*G15^2)/SIN(C15-B15) -> 0.7289727103 | L15: Constarint must be 1<l<ut
A16: 1 | B16: =FourBar2($B$8,$B$9,$B$10,1,1,A16*D_R) -> 1.069709126 | C16: 1.8621978 | D16: =B16/D_R -> 61.28981825 | E16: =C16/D_R -> 106.6960745 | F16: =E16-D16 -> 45.40625629 | G16: =$B$8/$B$9*SIN(A16*D_R-C16)/SIN(C16-B16) -> -0.78174728 | H16: =$B$8/$B$10*SIN(A16*D_R-B16)/SIN(C16-B16) -> -0.7614790187 | I16: =($B$8/$B$10*COS(A16*D_R-B16)-H16^2*COS(B16-C16)+$B$9/$B$10*G16^2)/SIN(C16-B16) -> 0.7894201523
A17: 2 | B17: =FourBar2($B$8,$B$9,$B$10,1,1,A17*D_R) -> 1.05601161 | C17: 1.849030726 | D17: =B17/D_R -> 60.50500838 | E17: =C17/D_R -> 105.9416568 | F17: 45.43664842 | G17: =$B$8/$B$9*SIN(A17*D_R-C17)/SIN(C17-B17) -> -0.7876946659 | H17: =$B$8/$B$10*SIN(A17*D_R-B17)/SIN(C17-B17) -> -0.7471854968 | I17: =($B$8/$B$10*COS(A17*D_R-B17)-H17^2*COS(B17-C17)+$B$9/$B$10*G17^2)/SIN(C17-B17) -> 0.8481916408 | L17: For a more accurate result take smaller increments for q12.
A18: 3 | B18: =FourBar2($B$8,$B$9,$B$10,1,1,A18*D_R) -> 1.042219583 | C18: 1.836121976 | D18: =B18/D_R -> 59.71478346 | E18: =C18/D_R -> 105.2020399 | F18: 45.48725645 | G18: =$B$8/$B$9*SIN(A18*D_R-C18)/SIN(C18-B18) -> -0.7925786176 | H18: =$B$8/$B$10*SIN(A18*D_R-B18)/SIN(C18-B18) -> -0.7318830651 | I18: =($B$8/$B$10*COS(A18*D_R-B18)-H18^2*COS(B18-C18)+$B$9/$B$10*G18^2)/SIN(C18-B18) -> 0.9049836399 | L18: Usually, 1o increment is sufficient
A19: 4 | B19: =FourBar2($B$8,$B$9,$B$10,1,1,A19*D_R) -> 1.028351525 | C19: 1.823488843 | D19: =B19/D_R -> 58.92020226 | E19: =C19/D_R -> 104.4782147 | F19: 45.55801241 | G19: =$B$8/$B$9*SIN(A19*D_R-C19)/SIN(C19-B19) -> -0.7964093834 | H19: =$B$8/$B$10*SIN(A19*D_R-B19)/SIN(C19-B19) -> -0.7156087809 | I19: =($B$8/$B$10*COS(A19*D_R-B19)-H19^2*COS(B19-C19)+$B$9/$B$10*G19^2)/SIN(C19-B19) -> 0.9595122232
A20: 5 | B20: =FourBar2($B$8,$B$9,$B$10,1,1,A20*D_R) -> 1.014425689 | C20: 1.811147929 | D20: =B20/D_R -> 58.12231063 | E20: =C20/D_R -> 103.7711324 | F20: 45.64882178 | G20: =$B$8/$B$9*SIN(A20*D_R-C20)/SIN(C20-B20) -> -0.7992025068 | H20: =$B$8/$B$10*SIN(A20*D_R-B20)/SIN(C20-B20) -> -0.6984044607 | I20: =($B$8/$B$10*COS(A20*D_R-B20)-H20^2*COS(B20-C20)+$B$9/$B$10*G20^2)/SIN(C20-B20) -> 1.011516535
A21: 6 | B21: =FourBar2($B$8,$B$9,$B$10,1,1,A21*D_R) -> 1.000460013 | C21: 1.799115071 | D21: =B21/D_R -> 57.32213632 | E21: =C21/D_R -> 103.0817004 | F21: 45.7595641 | G21: =$B$8/$B$9*SIN(A21*D_R-C21)/SIN(C21-B21) -> -0.8009785621 | H21: =$B$8/$B$10*SIN(A21*D_R-B21)/SIN(C21-B21) -> -0.6803162502 | I21: =($B$8/$B$10*COS(A21*D_R-B21)-H21^2*COS(B21-C21)+$B$9/$B$10*G21^2)/SIN(C21-B21) -> 1.060761761
A22: 7 | B22: =FourBar2($B$8,$B$9,$B$10,1,1,A22*D_R) -> 0.9864720339 | C22: 1.787405264 | D22: =B22/D_R -> 56.52068415 | E22: =C22/D_R -> 102.4107779 | F22: 45.89009376 | G22: =$B$8/$B$9*SIN(A22*D_R-C22)/SIN(C22-B22) -> -0.8017628339 | H22: =$B$8/$B$10*SIN(A22*D_R-B22)/SIN(C22-B22) -> -0.6613941482 | I22: =($B$8/$B$10*COS(A22*D_R-B22)-H22^2*COS(B22-C22)+$B$9/$B$10*G22^2)/SIN(C22-B22) -> 1.107041559
A23: 8 | B23: =FourBar2($B$8,$B$9,$B$10,1,1,A23*D_R) -> 0.972478809 | C23: 1.776032601 | D23: =B23/D_R -> 55.71893142 | E23: =C23/D_R -> 101.7591723 | F23: 46.04024092 | G23: =$B$8/$B$9*SIN(A23*D_R-C23)/SIN(C23-B23) -> -0.8015849451 | H23: =$B$8/$B$10*SIN(A23*D_R-B23)/SIN(C23-B23) -> -0.6416914924 | I23: =($B$8/$B$10*COS(A23*D_R-B23)-H23^2*COS(B23-C23)+$B$9/$B$10*G23^2)/SIN(C23-B23) -> 1.150179888
A24: 9 | B24: =FourBar2($B$8,$B$9,$B$10,1,1,A24*D_R) -> 0.9584968439 | C24: 1.76501022 | D24: =B24/D_R -> 54.91782383 | E24: =C24/D_R -> 101.1276364 | F24: 46.20981258 | G24: =$B$8/$B$9*SIN(A24*D_R-C24)/SIN(C24-B24) -> -0.8004784451 | H24: =$B$8/$B$10*SIN(A24*D_R-B24)/SIN(C24-B24) -> -0.6212644193 | I24: =($B$8/$B$10*COS(A24*D_R-B24)-H24^2*COS(B24-C24)+$B$9/$B$10*G24^2)/SIN(C24-B24) -> 1.190032244
A25: 10 | B25: =FourBar2($B$8,$B$9,$B$10,1,1,A25*D_R) -> 0.9445420276 | C25: 1.754350257 | D25: =B25/D_R -> 54.11827176 | E25: =C25/D_R -> 100.5168655 | F25: 46.39859378 | G25: =$B$8/$B$9*SIN(A25*D_R-C25)/SIN(C25-B25) -> -0.7984803649 | H25: =$B$8/$B$10*SIN(A25*D_R-B25)/SIN(C25-B25) -> -0.6001713076 | I25: =($B$8/$B$10*COS(A25*D_R-B25)-H25^2*COS(B25-C25)+$B$9/$B$10*G25^2)/SIN(C25-B25) -> 1.226486271
A26: 11 | B26: =FourBar2($B$8,$B$9,$B$10,1,1,A26*D_R) -> 0.9306295757 | C26: 1.744063815 | D26: =B26/D_R -> 53.32114698 | E26: =C26/D_R -> 99.92749581 | F26: 46.60634883 | G26: =$B$8/$B$9*SIN(A26*D_R-C26)/SIN(C26-B26) -> -0.7956307504 | H26: =$B$8/$B$10*SIN(A26*D_R-B26)/SIN(C26-B26) -> -0.5784722153 | I26: =($B$8/$B$10*COS(A26*D_R-B26)-H26^2*COS(B26-C26)+$B$9/$B$10*G26^2)/SIN(C26-B26) -> 1.25946179
A27: 12 | B27: =FourBar2($B$8,$B$9,$B$10,1,1,A27*D_R) -> 0.9167739819 | C27: 1.734160937 | D27: =B27/D_R -> 52.52727993 | E27: =C27/D_R -> 99.36010271 | F27: 46.83282278 | G27: =$B$8/$B$9*SIN(A27*D_R-C27)/SIN(C27-B27) -> -0.7919721828 | H27: =$B$8/$B$10*SIN(A27*D_R-B27)/SIN(C27-B27) -> -0.556228323 | I27: =($B$8/$B$10*COS(A27*D_R-B27)-H27^2*COS(B27-C27)+$B$9/$B$10*G27^2)/SIN(C27-B27) -> 1.288910263
A28: 13 | B28: =FourBar2($B$8,$B$9,$B$10,1,1,A28*D_R) -> 0.9029889783 | C28: 1.724650594 | D28: =B28/D_R -> 51.7374574 | E28: =C28/D_R -> 98.81520018 | F28: 47.07774277 | G28: =$B$8/$B$9*SIN(A28*D_R-C28)/SIN(C28-B28) -> -0.7875492947 | H28: =$B$8/$B$10*SIN(A28*D_R-B28)/SIN(C28-B28) -> -0.5335013892 | I28: =($B$8/$B$10*COS(A28*D_R-B28)-H28^2*COS(B28-C28)+$B$9/$B$10*G28^2)/SIN(C28-B28) -> 1.314813743
A29: 14 | B29: =FourBar2($B$8,$B$9,$B$10,1,1,A29*D_R) -> 0.8892875035 | C29: 1.715540676 | D29: =B29/D_R -> 50.95242072 | E29: =C29/D_R -> 98.29324033 | F29: 47.34081961 | G29: =$B$8/$B$9*SIN(A29*D_R-C29)/SIN(C29-B29) -> -0.7824082914 | H29: =$B$8/$B$10*SIN(A29*D_R-B29)/SIN(C29-B29) -> -0.5103532296 | I29: =($B$8/$B$10*COS(A29*D_R-B29)-H29^2*COS(B29-C29)+$B$9/$B$10*G29^2)/SIN(C29-B29) -> 1.337183383
A30: 15 | B30: =FourBar2($B$8,$B$9,$B$10,1,1,A30*D_R) -> 0.8756816794 | C30: 1.706837999 | D30: =B30/D_R -> 50.17286443 | E30: =C30/D_R -> 97.79461366 | F30: 47.62174923 | G30: =$B$8/$B$9*SIN(A30*D_R-C30)/SIN(C30-B30) -> -0.7765964842 | H30: =$B$8/$B$10*SIN(A30*D_R-B30)/SIN(C30-B30) -> -0.4868452244 | I30: =($B$8/$B$10*COS(A30*D_R-B30)-H30^2*COS(B30-C30)+$B$9/$B$10*G30^2)/SIN(C30-B30) -> 1.356057547
A31: 16 | B31: =FourBar2($B$8,$B$9,$B$10,1,1,A31*D_R) -> 0.8621827958 | C31: 1.698548313 | D31: =B31/D_R -> 49.39943537 | E31: =C31/D_R -> 97.31964965 | F31: 47.92021429 | G31: =$B$8/$B$9*SIN(A31*D_R-C31)/SIN(C31-B31) -> -0.7701618438 | H31: =$B$8/$B$10*SIN(A31*D_R-B31)/SIN(C31-B31) -> -0.463037863 | I31: =($B$8/$B$10*COS(A31*D_R-B31)-H31^2*COS(B31-C31)+$B$9/$B$10*G31^2)/SIN(C31-B31) -> 1.371499615
A32: 17 | B32: =FourBar2($B$8,$B$9,$B$10,1,1,A32*D_R) -> 0.8488013025 | C32: 1.690676325 | D32: =B32/D_R -> 48.63273228 | E32: =C32/D_R -> 96.86861797 | F32: 48.23588569 | G32: =$B$8/$B$9*SIN(A32*D_R-C32)/SIN(C32-B32) -> -0.7631525775 | H32: =$B$8/$B$10*SIN(A32*D_R-B32)/SIN(C32-B32) -> -0.4389903273 | I32: =($B$8/$B$10*COS(A32*D_R-B32)-H32^2*COS(B32-C32)+$B$9/$B$10*G32^2)/SIN(C32-B32) -> 1.383595557
A33: 18 | B33: =FourBar2($B$8,$B$9,$B$10,1,1,A33*D_R) -> 0.8355468088 | C33: 1.683225723 | D33: =B33/D_R -> 47.87330573 | E33: =C33/D_R -> 96.44172987 | F33: 48.56842414 | G33: =$B$8/$B$9*SIN(A33*D_R-C33)/SIN(C33-B33) -> -0.755616738 | H33: =$B$8/$B$10*SIN(A33*D_R-B33)/SIN(C33-B33) -> -0.4147601209 | I33: =($B$8/$B$10*COS(A33*D_R-B33)-H33^2*COS(B33-C33)+$B$9/$B$10*G33^2)/SIN(C33-B33) -> 1.392451328
A34: 19 | B34: =FourBar2($B$8,$B$9,$B$10,1,1,A34*D_R) -> 0.8224280894 | C34: 1.676199205 | D34: =B34/D_R -> 47.12165847 | E34: =C34/D_R -> 96.03914009 | F34: 48.91748162 | G34: =$B$8/$B$9*SIN(A34*D_R-C34)/SIN(C34-B34) -> -0.7476018639 | H34: =$B$8/$B$10*SIN(A34*D_R-B34)/SIN(C34-B34) -> -0.3904027429 | I34: =($B$8/$B$10*COS(A34*D_R-B34)-H34^2*COS(B34-C34)+$B$9/$B$10*G34^2)/SIN(C34-B34) -> 1.398190185
A35: 20 | B35: =FourBar2($B$8,$B$9,$B$10,1,1,A35*D_R) -> 0.8094530958 | C35: 1.669598526 | D35: =B35/D_R -> 46.3782461 | E35: =C35/D_R -> 95.66094901 | F35: 49.2827029 | G35: =$B$8/$B$9*SIN(A35*D_R-C35)/SIN(C35-B35) -> -0.7391546579 | H35: =$B$8/$B$10*SIN(A35*D_R-B35)/SIN(C35-B35) -> -0.3659714102 | I35: =($B$8/$B$10*COS(A35*D_R-B35)-H35^2*COS(B35-C35)+$B$9/$B$10*G35^2)/SIN(C35-B35) -> 1.400949969
A36: 21 | B36: =FourBar2($B$8,$B$9,$B$10,1,1,A36*D_R) -> 0.7966289742 | C36: 1.663424528 | D36: =B36/D_R -> 45.64347806 | E36: =C36/D_R -> 95.30720499 | F36: 49.66372693 | G36: =$B$8/$B$9*SIN(A36*D_R-C36)/SIN(C36-B36) -> -0.730320701 | H36: =$B$8/$B$10*SIN(A36*D_R-B36)/SIN(C36-B36) -> -0.341516826 | I36: =($B$8/$B$10*COS(A36*D_R-B36)-H36^2*COS(B36-C36)+$B$9/$B$10*G36^2)/SIN(C36-B36) -> 1.400880412
A37: 22 | B37: =FourBar2($B$8,$B$9,$B$10,1,1,A37*D_R) -> 0.7839620866 | C37: 1.657677195 | D37: =B37/D_R -> 44.91771886 | E37: =C37/D_R -> 94.97790707 | F37: 50.06018821 | G37: =$B$8/$B$9*SIN(A37*D_R-C37)/SIN(C37-B37) -> -0.7211442056 | H37: =$B$8/$B$10*SIN(A37*D_R-B37)/SIN(C37-B37) -> -0.3170869955 | I37: =($B$8/$B$10*COS(A37*D_R-B37)-H37^2*COS(B37-C37)+$B$9/$B$10*G37^2)/SIN(C37-B37) -> 1.398140538
A38: 23 | B38: =FourBar2($B$8,$B$9,$B$10,1,1,A38*D_R) -> 0.7714580371 | C38: 1.652355696 | D38: =B38/D_R -> 44.2012896 | E38: =C38/D_R -> 94.67300766 | F38: 50.47171807 | G38: =$B$8/$B$9*SIN(A38*D_R-C38)/SIN(C38-B38) -> -0.7116678069 | H38: =$B$8/$B$10*SIN(A38*D_R-B38)/SIN(C38-B38) -> -0.2927270858 | I38: =($B$8/$B$10*COS(A38*D_R-B38)-H38^2*COS(B38-C38)+$B$9/$B$10*G38^2)/SIN(C38-B38) -> 1.392896176
A39: 24 | B39: =FourBar2($B$8,$B$9,$B$10,1,1,A39*D_R) -> 0.7591217004 | C39: 1.647458439 | D39: =B39/D_R -> 43.49446957 | E39: =C39/D_R -> 94.39241548 | F39: 50.89794591 | G39: =$B$8/$B$9*SIN(A39*D_R-C39)/SIN(C39-B39) -> -0.7019323898 | H39: =$B$8/$B$10*SIN(A39*D_R-B39)/SIN(C39-B39) -> -0.2684793269 | I39: =($B$8/$B$10*COS(A39*D_R-B39)-H39^2*COS(B39-C39)+$B$9/$B$10*G39^2)/SIN(C39-B39) -> 1.385317637
A40: 25 | B40: =FourBar2($B$8,$B$9,$B$10,1,1,A40*D_R) -> 0.7469572541 | C40: 1.642983119 | D40: =B40/D_R -> 42.79749813 | E40: =C40/D_R -> 94.13599851 | F40: 51.33850038 | G40: =$B$8/$B$9*SIN(A40*D_R-C40)/SIN(C40-B40) -> -0.6919769521 | H40: =$B$8/$B$10*SIN(A40*D_R-B40)/SIN(C40-B40) -> -0.2443829532 | I40: =($B$8/$B$10*COS(A40*D_R-B40)-H40^2*COS(B40-C40)+$B$9/$B$10*G40^2)/SIN(C40-B40) -> 1.375577573
A41: 26 | B41: =FourBar2($B$8,$B$9,$B$10,1,1,A41*D_R) -> 0.7349682124 | C41: 1.638926773 | D41: =B41/D_R -> 42.11057664 | E41: =C41/D_R -> 93.90358701 | F41: 51.79301036 | G41: =$B$8/$B$9*SIN(A41*D_R-C41)/SIN(C41-B41) -> -0.6818385012 | H41: =$B$8/$B$10*SIN(A41*D_R-B41)/SIN(C41-B41) -> -0.2204741795 | I41: =($B$8/$B$10*COS(A41*D_R-B41)-H41^2*COS(B41-C41)+$B$9/$B$10*G41^2)/SIN(C41-B41) -> 1.363849035
A42: 27 | B42: =FourBar2($B$8,$B$9,$B$10,1,1,A42*D_R) -> 0.7231574615 | C42: 1.635285833 | D42: =B42/D_R -> 41.43387046 | E42: =C42/D_R -> 93.69497652 | F42: 52.26110605 | G42: =$B$8/$B$9*SIN(A42*D_R-C42)/SIN(C42-B42) -> -0.6715519804 | H42: =$B$8/$B$10*SIN(A42*D_R-B42)/SIN(C42-B42) -> -0.1967862097 | I42: =($B$8/$B$10*COS(A42*D_R-B42)-H42^2*COS(B42-C42)+$B$9/$B$10*G42^2)/SIN(C42-B42) -> 1.350303744
A43: 28 | B43: =FourBar2($B$8,$B$9,$B$10,1,1,A43*D_R) -> 0.711527296 | C43: 1.632056177 | D43: =B43/D_R -> 40.76751107 | E43: =C43/D_R -> 93.50993088 | F43: 52.74241981 | G43: =$B$8/$B$9*SIN(A43*D_R-C43)/SIN(C43-B43) -> -0.6611502246 | H43: =$B$8/$B$10*SIN(A43*D_R-B43)/SIN(C43-B43) -> -0.1733492732 | I43: =($B$8/$B$10*COS(A43*D_R-B43)-H43^2*COS(B43-C43)+$B$9/$B$10*G43^2)/SIN(C43-B43) -> 1.335110579
A44: 29 | B44: =FourBar2($B$8,$B$9,$B$10,1,1,A44*D_R) -> 0.7000794563 | C44: 1.629233182 | D44: =B44/D_R -> 40.11159817 | E44: =C44/D_R -> 93.34818516 | F44: 53.23658699 | G44: =$B$8/$B$9*SIN(A44*D_R-C44)/SIN(C44-B44) -> -0.6506639407 | H44: =$B$8/$B$10*SIN(A44*D_R-B44)/SIN(C44-B44) -> -0.1501906863 | I44: =($B$8/$B$10*COS(A44*D_R-B44)-H44^2*COS(B44-C44)+$B$9/$B$10*G44^2)/SIN(C44-B44) -> 1.318434274
A45: 30 | B45: =FourBar2($B$8,$B$9,$B$10,1,1,A45*D_R) -> 0.6888151649 | C45: 1.626811771 | D45: =B45/D_R -> 39.46620182 | E45: =C45/D_R -> 93.20944853 | F45: 53.74324672 | G45: =$B$8/$B$9*SIN(A45*D_R-C45)/SIN(C45-B45) -> -0.6401217106 | H45: =$B$8/$B$10*SIN(A45*D_R-B45)/SIN(C45-B45) -> -0.1273349345 | I45: =($B$8/$B$10*COS(A45*D_R-B45)-H45^2*COS(B45-C45)+$B$9/$B$10*G45^2)/SIN(C45-B45) -> 1.30043433
A46: 31 | B46: =FourBar2($B$8,$B$9,$B$10,1,1,A46*D_R) -> 0.6777351644 | C46: 1.624786465 | D46: =B46/D_R -> 38.83136455 | E46: =C46/D_R -> 93.09340706 | F46: 54.26204252 | G46: =$B$8/$B$9*SIN(A46*D_R-C46)/SIN(C46-B46) -> -0.6295500142 | H46: =$B$8/$B$10*SIN(A46*D_R-B46)/SIN(C46-B46) -> -0.1048037718 | I46: =($B$8/$B$10*COS(A46*D_R-B46)-H46^2*COS(B46-C46)+$B$9/$B$10*G46^2)/SIN(C46-B46) -> 1.281264118
A47: 32 | B47: =FourBar2($B$8,$B$9,$B$10,1,1,A47*D_R) -> 0.6668397528 | C47: 1.623151429 | D47: =B47/D_R -> 38.20710345 | E47: =C47/D_R -> 92.99972639 | F47: 54.79262294 | G47: =$B$8/$B$9*SIN(A47*D_R-C47)/SIN(C47-B47) -> -0.6189732685 | H47: =$B$8/$B$10*SIN(A47*D_R-B47)/SIN(C47-B47) -> -0.08261633402 | I47: =($B$8/$B$10*COS(A47*D_R-B47)-H47^2*COS(B47-C47)+$B$9/$B$10*G47^2)/SIN(C47-B47) -> 1.261070173
A48: 33 | B48: =FourBar2($B$8,$B$9,$B$10,1,1,A48*D_R) -> 0.65612882 | C48: 1.621900514 | D48: =B48/D_R -> 37.5934122 | E48: =C48/D_R -> 92.92805425 | F48: 55.33464205 | G48: =$B$8/$B$9*SIN(A48*D_R-C48)/SIN(C48-B48) -> -0.6084138814 | H48: =$B$8/$B$10*SIN(A48*D_R-B48)/SIN(C48-B48) -> -0.06078926326 | I48: =($B$8/$B$10*COS(A48*D_R-B48)-H48^2*COS(B48-C48)+$B$9/$B$10*G48^2)/SIN(C48-B48) -> 1.239991659
A49: 34 | B49: =FourBar2($B$8,$B$9,$B$10,1,1,A49*D_R) -> 0.6456018815 | C49: 1.621027303 | D49: =B49/D_R -> 36.99026306 | E49: =C49/D_R -> 92.87802295 | F49: 55.88775989 | G49: =$B$8/$B$9*SIN(A49*D_R-C49)/SIN(C49-B49) -> -0.5978923171 | H49: =$B$8/$B$10*SIN(A49*D_R-B49)/SIN(C49-B49) -> -0.03933683989 | I49: =($B$8/$B$10*COS(A49*D_R-B49)-H49^2*COS(B49-C49)+$B$9/$B$10*G49^2)/SIN(C49-B49) -> 1.218159985
A50: 35 | B50: =FourBar2($B$8,$B$9,$B$10,1,1,A50*D_R) -> 0.6352581124 | C50: 1.620525149 | D50: =B50/D_R -> 36.39760874 | E50: =C50/D_R -> 92.84925164 | F50: 56.4516429 | G50: =$B$8/$B$9*SIN(A50*D_R-C50)/SIN(C50-B50) -> -0.5874271707 | H50: =$B$8/$B$10*SIN(A50*D_R-B50)/SIN(C50-B50) -> -0.01827112026 | I50: =($B$8/$B$10*COS(A50*D_R-B50)-H50^2*COS(B50-C50)+$B$9/$B$10*G50^2)/SIN(C50-B50) -> 1.195698569
A51: 36 | B51: =FourBar2($B$8,$B$9,$B$10,1,1,A51*D_R) -> 0.6250963787 | C51: 1.620387213 | D51: =B51/D_R -> 35.81538429 | E51: =C51/D_R -> 92.84134846 | F51: 57.02596418 | G51: =$B$8/$B$9*SIN(A51*D_R-C51)/SIN(C51-B51) -> -0.5770352499 | H51: =$B$8/$B$10*SIN(A51*D_R-B51)/SIN(C51-B51) -> 0.002397922592 | I51: =($B$8/$B$10*COS(A51*D_R-B51)-H51^2*COS(B51-C51)+$B$9/$B$10*G51^2)/SIN(C51-B51) -> 1.172722714
A52: 37 | B52: =FourBar2($B$8,$B$9,$B$10,1,1,A52*D_R) -> 0.6151152682 | C52: 1.620606498 | D52: =B52/D_R -> 35.24350878 | E52: =C52/D_R -> 92.85391257 | F52: 57.61040379 | G52: =$B$8/$B$9*SIN(A52*D_R-C52)/SIN(C52-B52) -> -0.5667316622 | H52: =$B$8/$B$10*SIN(A52*D_R-B52)/SIN(C52-B52) -> 0.0226622571 | I52: =($B$8/$B$10*COS(A52*D_R-B52)-H52^2*COS(B52-C52)+$B$9/$B$10*G52^2)/SIN(C52-B52) -> 1.149339598
A53: 38 | B53: =FourBar2($B$8,$B$9,$B$10,1,1,A53*D_R) -> 0.605313119 | C53: 1.621175884 | D53: =B53/D_R -> 34.681887 | E53: =C53/D_R -> 92.88653598 | F53: 58.20464898 | G53: =$B$8/$B$9*SIN(A53*D_R-C53)/SIN(C53-B53) -> -0.5565299053 | H53: =$B$8/$B$10*SIN(A53*D_R-B53)/SIN(C53-B53) -> 0.04251565193 | I53: =($B$8/$B$10*COS(A53*D_R-B53)-H53^2*COS(B53-C53)+$B$9/$B$10*G53^2)/SIN(C53-B53) -> 1.125648355
A54: 39 | B54: =FourBar2($B$8,$B$9,$B$10,1,1,A54*D_R) -> 0.5956880473 | C54: 1.622088156 | D54: =B54/D_R -> 34.13041102 | E54: =C54/D_R -> 92.93880535 | F54: 58.80839433 | G54: =$B$8/$B$9*SIN(A54*D_R-C54)/SIN(C54-B54) -> -0.54644196 | H54: =$B$8/$B$10*SIN(A54*D_R-B54)/SIN(C54-B54) -> 0.06195353682 | I54: =($B$8/$B$10*COS(A54*D_R-B54)-H54^2*COS(B54-C54)+$B$9/$B$10*G54^2)/SIN(C54-B54) -> 1.101740227
A55: 40 | B55: =FourBar2($B$8,$B$9,$B$10,1,1,A55*D_R) -> 0.5862379725 | C55: 1.623336035 | D55: =B55/D_R -> 33.58896161 | E55: =C55/D_R -> 93.01030352 | F55: 59.42134191 | G55: =$B$8/$B$9*SIN(A55*D_R-C55)/SIN(C55-B55) -> -0.5364783833 | H55: =$B$8/$B$10*SIN(A55*D_R-B55)/SIN(C55-B55) -> 0.08097286672 | I55: =($B$8/$B$10*COS(A55*D_R-B55)-H55^2*COS(B55-C55)+$B$9/$B$10*G55^2)/SIN(C55-B55) -> 1.077698787
A56: 41 | B56: =FourBar2($B$8,$B$9,$B$10,1,1,A56*D_R) -> 0.5769606415 | C56: 1.624912198 | D56: =B56/D_R -> 33.0574097 | E56: =C56/D_R -> 93.100611 | F56: 60.0432013 | G56: =$B$8/$B$9*SIN(A56*D_R-C56)/SIN(C56-B56) -> -0.5266484018 | H56: =$B$8/$B$10*SIN(A56*D_R-B56)/SIN(C56-B56) -> 0.0995719901 | I56: =($B$8/$B$10*COS(A56*D_R-B56)-H56^2*COS(B56-C56)+$B$9/$B$10*G56^2)/SIN(C56-B56) -> 1.053600201
A57: 42 | B57: =FourBar2($B$8,$B$9,$B$10,1,1,A57*D_R) -> 0.5678536513 | C57: 1.626809306 | D57: =B57/D_R -> 32.5356176 | E57: =C57/D_R -> 93.20930729 | F57: 60.67368969 | G57: =$B$8/$B$9*SIN(A57*D_R-C57)/SIN(C57-B57) -> -0.5169600032 | H57: =$B$8/$B$10*SIN(A57*D_R-B57)/SIN(C57-B57) -> 0.1177505224 | I57: =($B$8/$B$10*COS(A57*D_R-B57)-H57^2*COS(B57-C57)+$B$9/$B$10*G57^2)/SIN(C57-B57) -> 1.029513541
A58: 43 | B58: =FourBar2($B$8,$B$9,$B$10,1,1,A58*D_R) -> 0.5589144695 | C58: 1.629020024 | D58: =B58/D_R -> 32.02344021 | E58: =C58/D_R -> 93.33597209 | F58: 61.31253188 | G58: =$B$8/$B$9*SIN(A58*D_R-C58)/SIN(C58-B58) -> -0.5074200261 | H58: =$B$8/$B$10*SIN(A58*D_R-B58)/SIN(C58-B58) -> 0.1355092252 | I58: =($B$8/$B$10*COS(A58*D_R-B58)-H58^2*COS(B58-C58)+$B$9/$B$10*G58^2)/SIN(C58-B58) -> 1.005501117
A59: 44 | B59: =FourBar2($B$8,$B$9,$B$10,1,1,A59*D_R) -> 0.5501404537 | C59: 1.631537038 | D59: =B59/D_R -> 31.52072614 | E59: =C59/D_R -> 93.48018638 | F59: 61.95946025 | G59: =$B$8/$B$9*SIN(A59*D_R-C59)/SIN(C59-B59) -> -0.4980342469 | H59: =$B$8/$B$10*SIN(A59*D_R-B59)/SIN(C59-B59) -> 0.152849891 | I59: =($B$8/$B$10*COS(A59*D_R-B59)-H59^2*COS(B59-C59)+$B$9/$B$10*G59^2)/SIN(C59-B59) -> 0.9816188364
A60: 45 | B60: =FourBar2($B$8,$B$9,$B$10,1,1,A60*D_R) -> 0.5415288695 | C60: 1.634353075 | D60: =B60/D_R -> 31.02731871 | E60: =C60/D_R -> 93.64153342 | F60: 62.61421471 | G60: =$B$8/$B$9*SIN(A60*D_R-C60)/SIN(C60-B60) -> -0.4888074639 | H60: =$B$8/$B$10*SIN(A60*D_R-B60)/SIN(C60-B60) -> 0.169775235 | I60: =($B$8/$B$10*COS(A60*D_R-B60)-H60^2*COS(B60-C60)+$B$9/$B$10*G60^2)/SIN(C60-B60) -> 0.9579165722
A61: 46 | B61: =FourBar2($B$8,$B$9,$B$10,1,1,A61*D_R) -> 0.5330769066 | C61: 1.637460916 | D61: =B61/D_R -> 30.5430569 | E61: =C61/D_R -> 93.81959958 | F61: 63.27654268 | G61: =$B$8/$B$9*SIN(A61*D_R-C61)/SIN(C61-B61) -> -0.4797435777 | H61: =$B$8/$B$10*SIN(A61*D_R-B61)/SIN(C61-B61) -> 0.1862887928 | I61: =($B$8/$B$10*COS(A61*D_R-B61)-H61^2*COS(B61-C61)+$B$9/$B$10*G61^2)/SIN(C61-B61) -> 0.9344385369
A62: 47 | B62: =FourBar2($B$8,$B$9,$B$10,1,1,A62*D_R) -> 0.5247816938 | C62: 1.640853409 | D62: =B62/D_R -> 30.06777622 | E62: =C62/D_R -> 94.01397516 | F62: 63.94619894 | G62: =$B$8/$B$9*SIN(A62*D_R-C62)/SIN(C62-B62) -> -0.4708456672 | H62: =$B$8/$B$10*SIN(A62*D_R-B62)/SIN(C62-B62) -> 0.2023948252 | I62: =($B$8/$B$10*COS(A62*D_R-B62)-H62^2*COS(B62-C62)+$B$9/$B$10*G62^2)/SIN(C62-B62) -> 0.911223659
A63: 48 | B63: =FourBar2($B$8,$B$9,$B$10,1,1,A63*D_R) -> 0.516640313 | C63: 1.644523485 | D63: =B63/D_R -> 29.60130946 | E63: =C63/D_R -> 94.22425502 | F63: 64.62294556 | G63: =$B$8/$B$9*SIN(A63*D_R-C63)/SIN(C63-B63) -> -0.4621160629 | H63: =$B$8/$B$10*SIN(A63*D_R-B63)/SIN(C63-B63) -> 0.2180982287 | I63: =($B$8/$B$10*COS(A63*D_R-B63)-H63^2*COS(B63-C63)+$B$9/$B$10*G63^2)/SIN(C63-B63) -> 0.8883059545
A64: 49 | B64: =FourBar2($B$8,$B$9,$B$10,1,1,A64*D_R) -> 0.5086498113 | C64: 1.648464163 | D64: =B64/D_R -> 29.14348744 | E64: =C64/D_R -> 94.45003922 | F64: 65.30655178 | G64: =$B$8/$B$9*SIN(A64*D_R-C64)/SIN(C64-B64) -> -0.4535564149 | H64: =$B$8/$B$10*SIN(A64*D_R-B64)/SIN(C64-B64) -> 0.2334044536 | I64: =($B$8/$B$10*COS(A64*D_R-B64)-H64^2*COS(B64-C64)+$B$9/$B$10*G64^2)/SIN(C64-B64) -> 0.8657148902
A65: 50 | B65: =FourBar2($B$8,$B$9,$B$10,1,1,A65*D_R) -> 0.5008072125 | C65: 1.652668561 | D65: =B65/D_R -> 28.69413963 | E65: =C65/D_R -> 94.6909335 | F65: 65.99679388 | G65: =$B$8/$B$9*SIN(A65*D_R-C65)/SIN(C65-B65) -> -0.4451677575 | H65: =$B$8/$B$10*SIN(A65*D_R-B65)/SIN(C65-B65) -> 0.2483194272 | I65: =($B$8/$B$10*COS(A65*D_R-B65)-H65^2*COS(B65-C65)+$B$9/$B$10*G65^2)/SIN(C65-B65) -> 0.8434757369
A66: 51 | B66: =FourBar2($B$8,$B$9,$B$10,1,1,A66*D_R) -> 0.4931095274 | C66: 1.657129907 | D66: =B66/D_R -> 28.25309476 | E66: =C66/D_R -> 94.94654976 | F66: 66.693455 | G66: =$B$8/$B$9*SIN(A66*D_R-C66)/SIN(C66-B66) -> -0.4369505694 | H66: =$B$8/$B$10*SIN(A66*D_R-B66)/SIN(C66-B66) -> 0.2628494838 | I66: =($B$8/$B$10*COS(A66*D_R-B66)-H66^2*COS(B66-C66)+$B$9/$B$10*G66^2)/SIN(C66-B66) -> 0.8216099095
A67: 52 | B67: =FourBar2($B$8,$B$9,$B$10,1,1,A67*D_R) -> 0.4855537628 | C67: 1.661841539 | D67: =B67/D_R -> 27.82018133 | E67: =C67/D_R -> 95.21650639 | F67: 67.39632506 | G67: =$B$8/$B$9*SIN(A67*D_R-C67)/SIN(C67-B67) -> -0.4289048302 | H67: =$B$8/$B$10*SIN(A67*D_R-B67)/SIN(C67-B67) -> 0.2770013 | I67: =($B$8/$B$10*COS(A67*D_R-B67)-H67^2*COS(B67-C67)+$B$9/$B$10*G67^2)/SIN(C67-B67) -> 0.8001352919
A68: 53 | B68: =FourBar2($B$8,$B$9,$B$10,1,1,A68*D_R) -> 0.4781369297 | C68: 1.666796916 | D68: =B68/D_R -> 27.3952281 | E68: =C68/D_R -> 95.5004286 | F68: 68.1052005 | G68: =$B$8/$B$9*SIN(A68*D_R-C68)/SIN(C68-B68) -> -0.4210300723 | H68: =$B$8/$B$10*SIN(A68*D_R-B68)/SIN(C68-B68) -> 0.2907818362 | I68: =($B$8/$B$10*COS(A68*D_R-B68)-H68^2*COS(B68-C68)+$B$9/$B$10*G68^2)/SIN(C68-B68) -> 0.7790665466
A69: 54 | B69: =FourBar2($B$8,$B$9,$B$10,1,1,A69*D_R) -> 0.470856051 | C69: 1.671989621 | D69: =B69/D_R -> 26.97806448 | E69: =C69/D_R -> 95.7979487 | F69: 68.81988422 | G69: =$B$8/$B$9*SIN(A69*D_R-C69)/SIN(C69-B69) -> -0.4133254298 | H69: =$B$8/$B$10*SIN(A69*D_R-B69)/SIN(C69-B69) -> 0.3041982827 | I69: =($B$8/$B$10*COS(A69*D_R-B69)-H69^2*COS(B69-C69)+$B$9/$B$10*G69^2)/SIN(C69-B69) -> 0.7584154068
A70: 55 | B70: =FourBar2($B$8,$B$9,$B$10,1,1,A70*D_R) -> 0.4637081678 | C70: 1.677413364 | D70: =B70/D_R -> 26.56852094 | E70: =C70/D_R -> 96.10870626 | F70: 69.54018532 | G70: =$B$8/$B$9*SIN(A70*D_R-C70)/SIN(C70-B70) -> -0.4057896833 | H70: =$B$8/$B$10*SIN(A70*D_R-B70)/SIN(C70-B70) -> 0.3172580109 | I70: =($B$8/$B$10*COS(A70*D_R-B70)-H70^2*COS(B70-C70)+$B$9/$B$10*G70^2)/SIN(C70-B70) -> 0.7381909522
A71: 56 | B71: =FourBar2($B$8,$B$9,$B$10,1,1,A71*D_R) -> 0.4566903452 | C71: 1.683061984 | D71: =B71/D_R -> 26.16642932 | E71: =C71/D_R -> 96.43234831 | F71: 70.26591899 | G71: =$B$8/$B$9*SIN(A71*D_R-C71)/SIN(C71-B71) -> -0.3984213009 | H71: =$B$8/$B$10*SIN(A71*D_R-B71)/SIN(C71-B71) -> 0.3299685296 | I71: =($B$8/$B$10*COS(A71*D_R-B71)-H71^2*COS(B71-C71)+$B$9/$B$10*G71^2)/SIN(C71-B71) -> 0.7183998663
A72: 57 | B72: =FourBar2($B$8,$B$9,$B$10,1,1,A72*D_R) -> 0.4497996775 | C72: 1.688929451 | D72: =B72/D_R -> 25.77162315 | E72: =C72/D_R -> 96.76852945 | F72: 70.9969063 | G72: =$B$8/$B$9*SIN(A72*D_R-C72)/SIN(C72-B72) -> -0.3912184766 | H72: =$B$8/$B$10*SIN(A72*D_R-B72)/SIN(C72-B72) -> 0.3423374449 | I72: =($B$8/$B$10*COS(A72*D_R-B72)-H72^2*COS(B72-C72)+$B$9/$B$10*G72^2)/SIN(C72-B72) -> 0.6990466777
A73: 58 | B73: =FourBar2($B$8,$B$9,$B$10,1,1,A73*D_R) -> 0.4430332928 | C73: 1.695009872 | D73: =B73/D_R -> 25.38393786 | E73: =C73/D_R -> 97.11691189 | F73: 71.73297403 | G73: =$B$8/$B$9*SIN(A73*D_R-C73)/SIN(C73-B73) -> -0.3841791649 | H73: =$B$8/$B$10*SIN(A73*D_R-B73)/SIN(C73-B73) -> 0.3543724249 | I73: =($B$8/$B$10*COS(A73*D_R-B73)-H73^2*COS(B73-C73)+$B$9/$B$10*G73^2)/SIN(C73-B73) -> 0.6801339834
A74: 59 | B74: =FourBar2($B$8,$B$9,$B$10,1,1,A74*D_R) -> 0.4363883566 | C74: 1.701297484 | D74: =B74/D_R -> 25.00321106 | E74: =C74/D_R -> 97.47716555 | F74: 72.47395449 | G74: =$B$8/$B$9*SIN(A74*D_R-C74)/SIN(C74-B74) -> -0.3773011128 | H74: =$B$8/$B$10*SIN(A74*D_R-B74)/SIN(C74-B74) -> 0.3660811677 | I74: =($B$8/$B$10*COS(A74*D_R-B74)-H74^2*COS(B74-C74)+$B$9/$B$10*G74^2)/SIN(C74-B74) -> 0.6616626564
A75: 60 | B75: =FourBar2($B$8,$B$9,$B$10,1,1,A75*D_R) -> 0.4298620754 | C75: 1.707786662 | D75: =B75/D_R -> 24.62928269 | E75: =C75/D_R -> 97.84896805 | F75: 73.21968536 | G75: =$B$8/$B$9*SIN(A75*D_R-C75)/SIN(C75-B75) -> -0.3705818885 | H75: =$B$8/$B$10*SIN(A75*D_R-B75)/SIN(C75-B75) -> 0.3774713729 | I75: =($B$8/$B$10*COS(A75*D_R-B75)-H75^2*COS(B75-C75)+$B$9/$B$10*G75^2)/SIN(C75-B75) -> 0.6436320368
A76: 61 | B76: =FourBar2($B$8,$B$9,$B$10,1,1,A76*D_R) -> 0.4234516994 | C76: 1.714471912 | D76: =B76/D_R -> 24.2619952 | E76: =C76/D_R -> 98.23200468 | F76: 73.97000948 | G76: =$B$8/$B$9*SIN(A76*D_R-C76)/SIN(C76-B76) -> -0.3640189084 | H76: =$B$8/$B$10*SIN(A76*D_R-B76)/SIN(C76-B76) -> 0.3885507166 | I76: =($B$8/$B$10*COS(A76*D_R-B76)-H76^2*COS(B76-C76)+$B$9/$B$10*G76^2)/SIN(C76-B76) -> 0.6260401081
A77: 62 | B77: =FourBar2($B$8,$B$9,$B$10,1,1,A77*D_R) -> 0.4171545252 | C77: 1.721347877 | D77: =B77/D_R -> 23.9011937 | E77: =C77/D_R -> 98.6259684 | F77: 74.72477471 | G77: =$B$8/$B$9*SIN(A77*D_R-C77)/SIN(C77-B77) -> -0.3576094605 | H77: =$B$8/$B$10*SIN(A77*D_R-B77)/SIN(C77-B77) -> 0.3993268289 | I77: =($B$8/$B$10*COS(A77*D_R-B77)-H77^2*COS(B77-C77)+$B$9/$B$10*G77^2)/SIN(C77-B77) -> 0.6088836589
A78: 63 | B78: =FourBar2($B$8,$B$9,$B$10,1,1,A78*D_R) -> 0.4109678975 | C78: 1.728409328 | D78: =B78/D_R -> 23.54672604 | E78: =C78/D_R -> 99.03055978 | F78: 75.48383374 | G78: =$B$8/$B$9*SIN(A78*D_R-C78)/SIN(C78-B78) -> -0.3513507263 | H78: =$B$8/$B$10*SIN(A78*D_R-B78)/SIN(C78-B78) -> 0.4098072747 | I78: =($B$8/$B$10*COS(A78*D_R-B78)-H78^2*COS(B78-C78)+$B$9/$B$10*G78^2)/SIN(C78-B78) -> 0.5921584303
A79: 64 | B79: =FourBar2($B$8,$B$9,$B$10,1,1,A79*D_R) -> 0.4048892112 | C79: 1.735651173 | D79: =B79/D_R -> 23.19844297 | E79: =C79/D_R -> 99.44548689 | F79: 76.24704392 | G79: =$B$8/$B$9*SIN(A79*D_R-C79)/SIN(C79-B79) -> -0.3452398006 | H79: =$B$8/$B$10*SIN(A79*D_R-B79)/SIN(C79-B79) -> 0.4199995363 | I79: =($B$8/$B$10*COS(A79*D_R-B79)-H79^2*COS(B79-C79)+$B$9/$B$10*G79^2)/SIN(C79-B79) -> 0.5758592513
A80: 65 | B80: =FourBar2($B$8,$B$9,$B$10,1,1,A80*D_R) -> 0.3989159124 | C80: 1.743068444 | D80: =B80/D_R -> 22.85619816 | E80: =C80/D_R -> 99.87046526 | F80: =E80-D80 -> 77.01426709 | G80: =$B$8/$B$9*SIN(A80*D_R-C80)/SIN(C80-B80) -> -0.3392737089 | H80: =$B$8/$B$10*SIN(A80*D_R-B80)/SIN(C80-B80) -> 0.4299109987 | I80: =($B$8/$B$10*COS(A80*D_R-B80)-H80^2*COS(B80-C80)+$B$9/$B$10*G80^2)/SIN(C80-B80) -> 0.5599801612
A81: 66 | B81: =FourBar2($B$8,$B$9,$B$10,1,1,A81*D_R) -> 0.3930454997 | C81: 1.750656306 | D81: =B81/D_R -> 22.51984829 | E81: =C81/D_R -> 100.3052177 | F81: 77.78536943 | G81: =$B$8/$B$9*SIN(A81*D_R-C81)/SIN(C81-B81) -> -0.333449423 | H81: =$B$8/$B$10*SIN(A81*D_R-B81)/SIN(C81-B81) -> 0.4395489369 | I81: =($B$8/$B$10*COS(A81*D_R-B81)-H81^2*COS(B81-C81)+$B$9/$B$10*G81^2)/SIN(C81-B81) -> 0.5445145211
A82: 67 | B82: =FourBar2($B$8,$B$9,$B$10,1,1,A82*D_R) -> 0.3872755246 | C82: 1.758410047 | D82: =B82/D_R -> 22.18925307 | E82: =C82/D_R -> 100.7494743 | F82: 78.56022127 | G82: =$B$8/$B$9*SIN(A82*D_R-C82)/SIN(C82-B82) -> -0.3277638756 | H82: =$B$8/$B$10*SIN(A82*D_R-B82)/SIN(C82-B82) -> 0.4489205046 | I82: =($B$8/$B$10*COS(A82*D_R-B82)-H82^2*COS(B82-C82)+$B$9/$B$10*G82^2)/SIN(C82-B82) -> 0.5294551145
A83: 68 | B83: =FourBar2($B$8,$B$9,$B$10,1,1,A83*D_R) -> 0.3816035929 | C83: 1.766325079 | D83: =B83/D_R -> 21.86427532 | E83: =C83/D_R -> 101.2029723 | F83: 79.33869696 | G83: =$B$8/$B$9*SIN(A83*D_R-C83)/SIN(C83-B83) -> -0.3222139728 | H83: =$B$8/$B$10*SIN(A83*D_R-B83)/SIN(C83-B83) -> 0.4580327255 | I83: =($B$8/$B$10*COS(A83*D_R-B83)-H83^2*COS(B83-C83)+$B$9/$B$10*G83^2)/SIN(C83-B83) -> 0.5147942381
A84: 69 | B84: =FourBar2($B$8,$B$9,$B$10,1,1,A84*D_R) -> 0.3760273641 | C84: 1.774396936 | D84: =B84/D_R -> 21.54478095 | E84: =C84/D_R -> 101.6654556 | F84: 80.12067469 | G84: =$B$8/$B$9*SIN(A84*D_R-C84)/SIN(C84-B84) -> -0.3167966051 | H84: =$B$8/$B$10*SIN(A84*D_R-B84)/SIN(C84-B84) -> 0.4668924849 | I84: =($B$8/$B$10*COS(A84*D_R-B84)-H84^2*COS(B84-C84)+$B$9/$B$10*G84^2)/SIN(C84-B84) -> 0.5005237839
A85: 70 | B85: =FourBar2($B$8,$B$9,$B$10,1,1,A85*D_R) -> 0.3705445523 | C85: 1.782621272 | D85: =B85/D_R -> 21.23063897 | E85: =C85/D_R -> 102.1366753 | F85: 80.90603637 | G85: =$B$8/$B$9*SIN(A85*D_R-C85)/SIN(C85-B85) -> -0.3115086573 | H85: =$B$8/$B$10*SIN(A85*D_R-B85)/SIN(C85-B85) -> 0.4755065239 | I85: =($B$8/$B$10*COS(A85*D_R-B85)-H85^2*COS(B85-C85)+$B$9/$B$10*G85^2)/SIN(C85-B85) -> 0.4866353121
A86: 71 | B86: =FourBar2($B$8,$B$9,$B$10,1,1,A86*D_R) -> 0.3651529259 | C86: 1.790993854 | D86: =B86/D_R -> 20.92172153 | E86: =C86/D_R -> 102.616389 | F86: 81.69466745 | G86: =$B$8/$B$9*SIN(A86*D_R-C86)/SIN(C86-B86) -> -0.3063470176 | H86: =$B$8/$B$10*SIN(A86*D_R-B86)/SIN(C86-B86) -> 0.4838814335 | I86: =($B$8/$B$10*COS(A86*D_R-B86)-H86^2*COS(B86-C86)+$B$9/$B$10*G86^2)/SIN(C86-B86) -> 0.4731201171
A87: 72 | B87: =FourBar2($B$8,$B$9,$B$10,1,1,A87*D_R) -> 0.3598503073 | C87: 1.799510566 | D87: =B87/D_R -> 20.61790387 | E87: =C87/D_R -> 103.1043606 | F87: 82.48645678 | G87: =$B$8/$B$9*SIN(A87*D_R-C87)/SIN(C87-B87) -> -0.301308585 | H87: =$B$8/$B$10*SIN(A87*D_R-B87)/SIN(C87-B87) -> 0.4920236513 | I87: =($B$8/$B$10*COS(A87*D_R-B87)-H87^2*COS(B87-C87)+$B$9/$B$10*G87^2)/SIN(C87-B87) -> 0.4599692854
A88: 73 | B88: =FourBar2($B$8,$B$9,$B$10,1,1,A88*D_R) -> 0.3546345733 | C88: 1.808167402 | D88: =B88/D_R -> 20.31906432 | E88: =C88/D_R -> 103.6003608 | F88: 83.28129649 | G88: =$B$8/$B$9*SIN(A88*D_R-C88)/SIN(C88-B88) -> -0.2963902759 | H88: =$B$8/$B$10*SIN(A88*D_R-B88)/SIN(C88-B88) -> 0.4999394575 | I88: =($B$8/$B$10*COS(A88*D_R-B88)-H88^2*COS(B88-C88)+$B$9/$B$10*G88^2)/SIN(C88-B88) -> 0.4471737483
A89: 74 | B89: =FourBar2($B$8,$B$9,$B$10,1,1,A89*D_R) -> 0.3495036539 | C89: 1.816960464 | D89: =B89/D_R -> 20.02508429 | E89: =C89/D_R -> 104.1041661 | F89: 84.07908184 | G89: =$B$8/$B$9*SIN(A89*D_R-C89)/SIN(C89-B89) -> -0.2915890301 | H89: =$B$8/$B$10*SIN(A89*D_R-B89)/SIN(C89-B89) -> 0.5076349734 | I89: =($B$8/$B$10*COS(A89*D_R-B89)-H89^2*COS(B89-C89)+$B$9/$B$10*G89^2)/SIN(C89-B89) -> 0.4347243269
A90: 75 | B90: =FourBar2($B$8,$B$9,$B$10,1,1,A90*D_R) -> 0.3444555326 | C90: 1.825885959 | D90: =B90/D_R -> 19.73584825 | E90: =C90/D_R -> 104.6155593 | F90: 84.87971107 | G90: =$B$8/$B$9*SIN(A90*D_R-C90)/SIN(C90-B90) -> -0.2869018156 | H90: =$B$8/$B$10*SIN(A90*D_R-B90)/SIN(C90-B90) -> 0.5151161591 | I90: =($B$8/$B$10*COS(A90*D_R-B90)-H90^2*COS(B90-C90)+$B$9/$B$10*G90^2)/SIN(C90-B90) -> 0.4226117734
A91: 76 | B91: =FourBar2($B$8,$B$9,$B$10,1,1,A91*D_R) -> 0.3394882453 | C91: 1.834940197 | D91: =B91/D_R -> 19.45124365 | E91: =C91/D_R -> 105.1343289 | F91: 85.68308529 | G91: =$B$8/$B$9*SIN(A91*D_R-C91)/SIN(C91-B91) -> -0.282325633 | H91: =$B$8/$B$10*SIN(A91*D_R-B91)/SIN(C91-B91) -> 0.522388813 | I91: =($B$8/$B$10*COS(A91*D_R-B91)-H91^2*COS(B91-C91)+$B$9/$B$10*G91^2)/SIN(C91-B91) -> 0.4108268059
A92: 77 | B92: =FourBar2($B$8,$B$9,$B$10,1,1,A92*D_R) -> 0.3345998802 | C92: 1.844119588 | D92: =B92/D_R -> 19.17116096 | E92: =C92/D_R -> 105.6602693 | F92: 86.48910835 | G92: =$B$8/$B$9*SIN(A92*D_R-C92)/SIN(C92-B92) -> -0.2778575188 | H92: =$B$8/$B$10*SIN(A92*D_R-B92)/SIN(C92-B92) -> 0.5294585717 | I92: =($B$8/$B$10*COS(A92*D_R-B92)-H92^2*COS(B92-C92)+$B$9/$B$10*G92^2)/SIN(C92-B92) -> 0.3993601396
A93: 78 | B93: =FourBar2($B$8,$B$9,$B$10,1,1,A93*D_R) -> 0.3297885765 | C93: 1.853420639 | D93: =B93/D_R -> 18.89549357 | E93: =C93/D_R -> 106.1931803 | F93: 87.29768672 | G93: =$B$8/$B$9*SIN(A93*D_R-C93)/SIN(C93-B93) -> -0.2734945486 | H93: =$B$8/$B$10*SIN(A93*D_R-B93)/SIN(C93-B93) -> 0.5363309096 | I93: =($B$8/$B$10*COS(A93*D_R-B93)-H93^2*COS(B93-C93)+$B$9/$B$10*G93^2)/SIN(C93-B93) -> 0.3882025136
A94: 79 | B94: =FourBar2($B$8,$B$9,$B$10,1,1,A94*D_R) -> 0.3250525245 | C94: 1.862839951 | D94: =B94/D_R -> 18.62413778 | E94: =C94/D_R -> 106.7328671 | F94: 88.10872932 | G94: =$B$8/$B$9*SIN(A94*D_R-C94)/SIN(C94-B94) -> -0.2692338393 | H94: =$B$8/$B$10*SIN(A94*D_R-B94)/SIN(C94-B94) -> 0.54301114 | I94: =($B$8/$B$10*COS(A94*D_R-B94)-H94^2*COS(B94-C94)+$B$9/$B$10*G94^2)/SIN(C94-B94) -> 0.3773447138
A95: 80 | B95: =FourBar2($B$8,$B$9,$B$10,1,1,A95*D_R) -> 0.3203899642 | C95: 1.872374216 | D95: =B95/D_R -> 18.35699275 | E95: =C95/D_R -> 107.2791402 | F95: 88.9221475 | G95: =$B$8/$B$9*SIN(A95*D_R-C95)/SIN(C95-B95) -> -0.265072551 | H95: =$B$8/$B$10*SIN(A95*D_R-B95)/SIN(C95-B95) -> 0.549504416 | I95: =($B$8/$B$10*COS(A95*D_R-B95)-H95^2*COS(B95-C95)+$B$9/$B$10*G95^2)/SIN(C95-B95) -> 0.3667775924
A96: 81 | B96: =FourBar2($B$8,$B$9,$B$10,1,1,A96*D_R) -> 0.3157991849 | C96: 1.882020215 | D96: =B96/D_R -> 18.09396047 | E96: =C96/D_R -> 107.8318153 | F96: 89.73785481 | G96: =$B$8/$B$9*SIN(A96*D_R-C96)/SIN(C96-B96) -> -0.2610078887 | H96: =$B$8/$B$10*SIN(A96*D_R-B96)/SIN(C96-B96) -> 0.5558157316 | I96: =($B$8/$B$10*COS(A96*D_R-B96)-H96^2*COS(B96-C96)+$B$9/$B$10*G96^2)/SIN(C96-B96) -> 0.3564920846
A97: 82 | B97: =FourBar2($B$8,$B$9,$B$10,1,1,A97*D_R) -> 0.311278524 | C97: 1.891774815 | D97: =B97/D_R -> 17.83494568 | E97: =C97/D_R -> 108.3907127 | F97: 90.55576699 | G97: =$B$8/$B$9*SIN(A97*D_R-C97)/SIN(C97-B97) -> -0.2570371029 | H97: =$B$8/$B$10*SIN(A97*D_R-B97)/SIN(C97-B97) -> 0.5619499235 | I97: =($B$8/$B$10*COS(A97*D_R-B97)-H97^2*COS(B97-C97)+$B$9/$B$10*G97^2)/SIN(C97-B97) -> 0.3464792223
A98: 83 | B98: =FourBar2($B$8,$B$9,$B$10,1,1,A98*D_R) -> 0.306826367 | C98: 1.901634965 | D98: =B98/D_R -> 17.57985587 | E98: =C98/D_R -> 108.9556576 | F98: 91.37580178 | G98: =$B$8/$B$9*SIN(A98*D_R-C98)/SIN(C98-B98) -> -0.2531574907 | H98: =$B$8/$B$10*SIN(A98*D_R-B98)/SIN(C98-B98) -> 0.5679116727 | I98: =($B$8/$B$10*COS(A98*D_R-B98)-H98^2*COS(B98-C98)+$B$9/$B$10*G98^2)/SIN(C98-B98) -> 0.3367301449
A99: 84 | B99: =FourBar2($B$8,$B$9,$B$10,1,1,A99*D_R) -> 0.3024411456 | C99: 1.911597695 | D99: =B99/D_R -> 17.32860119 | E99: =C99/D_R -> 109.52648 | F99: 92.19787885 | G99: =$B$8/$B$9*SIN(A99*D_R-C99)/SIN(C99-B99) -> -0.2493663956 | H99: =$B$8/$B$10*SIN(A99*D_R-B99)/SIN(C99-B99) -> 0.5737055066 | I99: =($B$8/$B$10*COS(A99*D_R-B99)-H99^2*COS(B99-C99)+$B$9/$B$10*G99^2)/SIN(C99-B99) -> 0.3272361087
A100: 85 | B100: =FourBar2($B$8,$B$9,$B$10,1,1,A100*D_R) -> 0.2981213379 | C100: 1.921660113 | D100: =B100/D_R -> 17.08109444 | E100: =C100/D_R -> 110.1030141 | F100: 93.02191971 | G100: =$B$8/$B$9*SIN(A100*D_R-C100)/SIN(C100-B100) -> -0.2456612081 | H100: =$B$8/$B$10*SIN(A100*D_R-B100)/SIN(C100-B100) -> 0.5793358013 | I100: =($B$8/$B$10*COS(A100*D_R-B100)-H100^2*COS(B100-C100)+$B$9/$B$10*G100^2)/SIN(C100-B100) -> 0.3179884932
A101: 86 | B101: =FourBar2($B$8,$B$9,$B$10,1,1,A101*D_R) -> 0.2938654669 | C101: 1.931819403 | D101: =B101/D_R -> 16.837251 | E101: =C101/D_R -> 110.6850985 | F101: 93.84784755 | G101: =$B$8/$B$9*SIN(A101*D_R-C101)/SIN(C101-B101) -> -0.2420393648 | H101: =$B$8/$B$10*SIN(A101*D_R-B101)/SIN(C101-B101) -> 0.5848067832 | I101: =($B$8/$B$10*COS(A101*D_R-B101)-H101^2*COS(B101-C101)+$B$9/$B$10*G101^2)/SIN(C101-B101) -> 0.3089788059
A102: 87 | B102: =FourBar2($B$8,$B$9,$B$10,1,1,A102*D_R) -> 0.2896721 | C102: 1.942072818 | D102: =B102/D_R -> 16.59698877 | E102: =C102/D_R -> 111.272576 | F102: 94.6755872 | G102: =$B$8/$B$9*SIN(A102*D_R-C102)/SIN(C102-B102) -> -0.2384983484 | H102: =$B$8/$B$10*SIN(A102*D_R-B102)/SIN(C102-B102) -> 0.5901225318 | I102: =($B$8/$B$10*COS(A102*D_R-B102)-H102^2*COS(B102-C102)+$B$9/$B$10*G102^2)/SIN(C102-B102) -> 0.3001986861
A103: 88 | B103: =FourBar2($B$8,$B$9,$B$10,1,1,A103*D_R) -> 0.2855398482 | C103: 1.952417685 | D103: =B103/D_R -> 16.36022818 | E103: =C103/D_R -> 111.8652932 | F103: 95.505065 | G103: =$B$8/$B$9*SIN(A103*D_R-C103)/SIN(C103-B103) -> -0.2350356868 | H103: =$B$8/$B$10*SIN(A103*D_R-B103)/SIN(C103-B103) -> 0.5952869818 | I103: =($B$8/$B$10*COS(A103*D_R-B103)-H103^2*COS(B103-C103)+$B$9/$B$10*G103^2)/SIN(C103-B103) -> 0.2916399056
A104: 89 | B104: =FourBar2($B$8,$B$9,$B$10,1,1,A104*D_R) -> 0.2814673651 | C104: 1.962851395 | D104: =B104/D_R -> 16.12689209 | E104: =C104/D_R -> 112.4631008 | F104: 96.33620868 | G104: =$B$8/$B$9*SIN(A104*D_R-C104)/SIN(C104-B104) -> -0.231648952 | H104: =$B$8/$B$10*SIN(A104*D_R-B104)/SIN(C104-B104) -> 0.6003039256 | I104: =($B$8/$B$10*COS(A104*D_R-B104)-H104^2*COS(B104-C104)+$B$9/$B$10*G104^2)/SIN(C104-B104) -> 0.2832943696
A105: 90 | B105: =FourBar2($B$8,$B$9,$B$10,1,1,A105*D_R) -> 0.2774533465 | C105: 1.973371408 | D105: =B105/D_R -> 15.89690576 | E105: =C105/D_R -> 113.0658531 | F105: 97.16894732 | G105: =$B$8/$B$9*SIN(A105*D_R-C105)/SIN(C105-B105) -> -0.228335759 | H105: =$B$8/$B$10*SIN(A105*D_R-B105)/SIN(C105-B105) -> 0.6051770151 | I105: =($B$8/$B$10*COS(A105*D_R-B105)-H105^2*COS(B105-C105)+$B$9/$B$10*G105^2)/SIN(C105-B105) -> 0.2751541149
A106: 91 | B106: =FourBar2($B$8,$B$9,$B$10,1,1,A106*D_R) -> 0.2734965293 | C106: 1.983975242 | D106: =B106/D_R -> 15.67019684 | E106: =C106/D_R -> 113.673408 | F106: 98.00321118 | G106: =$B$8/$B$9*SIN(A106*D_R-C106)/SIN(C106-B106) -> -0.2250937644 | H106: =$B$8/$B$10*SIN(A106*D_R-B106)/SIN(C106-B106) -> 0.6099097648 | I106: =($B$8/$B$10*COS(A106*D_R-B106)-H106^2*COS(B106-C106)+$B$9/$B$10*G106^2)/SIN(C106-B106) -> 0.2672113083
A107: 92 | B107: =FourBar2($B$8,$B$9,$B$10,1,1,A107*D_R) -> 0.269595691 | C107: 1.994660478 | D107: =B107/D_R -> 15.44669527 | E107: =C107/D_R -> 114.285627 | F107: 98.83893169 | G107: =$B$8/$B$9*SIN(A107*D_R-C107)/SIN(C107-B107) -> -0.2219206654 | H107: =$B$8/$B$10*SIN(A107*D_R-B107)/SIN(C107-B107) -> 0.6145055532 | I107: =($B$8/$B$10*COS(A107*D_R-B107)-H107^2*COS(B107-C107)+$B$9/$B$10*G107^2)/SIN(C107-B107) -> 0.2594582421
A108: 93 | B108: =FourBar2($B$8,$B$9,$B$10,1,1,A108*D_R) -> 0.2657496491 | C108: 2.005424754 | D108: =B108/D_R -> 15.2263333 | E108: =C108/D_R -> 114.9023746 | F108: 99.67604126 | G108: =$B$8/$B$9*SIN(A108*D_R-C108)/SIN(C108-B108) -> -0.2188141972 | H108: =$B$8/$B$10*SIN(A108*D_R-B108)/SIN(C108-B108) -> 0.6189676257 | I108: =($B$8/$B$10*COS(A108*D_R-B108)-H108^2*COS(B108-C108)+$B$9/$B$10*G108^2)/SIN(C108-B108) -> 0.2518873308
A109: 94 | B109: =FourBar2($B$8,$B$9,$B$10,1,1,A109*D_R) -> 0.26195726 | C109: 2.016265764 | D109: =B109/D_R -> 15.00904541 | E109: =C109/D_R -> 115.5235187 | F109: 100.5144733 | G109: =$B$8/$B$9*SIN(A109*D_R-C109)/SIN(C109-B109) -> -0.2157721322 | H109: =$B$8/$B$10*SIN(A109*D_R-B109)/SIN(C109-B109) -> 0.623299096 | I109: =($B$8/$B$10*COS(A109*D_R-B109)-H109^2*COS(B109-C109)+$B$9/$B$10*G109^2)/SIN(C109-B109) -> 0.2444911044
A110: 95 | B110: =FourBar2($B$8,$B$9,$B$10,1,1,A110*D_R) -> 0.2582174189 | C110: 2.027181255 | D110: =B110/D_R -> 14.7947683 | E110: =C110/D_R -> 116.1489302 | F110: 101.3541619 | G110: =$B$8/$B$9*SIN(A110*D_R-C110)/SIN(C110-B110) -> -0.2127922772 | H110: =$B$8/$B$10*SIN(A110*D_R-B110)/SIN(C110-B110) -> 0.6275029486 | I110: =($B$8/$B$10*COS(A110*D_R-B110)-H110^2*COS(B110-C110)+$B$9/$B$10*G110^2)/SIN(C110-B110) -> 0.2372622031
A111: 96 | B111: =FourBar2($B$8,$B$9,$B$10,1,1,A111*D_R) -> 0.2545290589 | C111: 2.038169024 | D111: =B111/D_R -> 14.58344084 | E111: =C111/D_R -> 116.778483 | F111: 102.1950421 | G111: =$B$8/$B$9*SIN(A111*D_R-C111)/SIN(C111-B111) -> -0.209872472 | H111: =$B$8/$B$10*SIN(A111*D_R-B111)/SIN(C111-B111) -> 0.6315820405 | I111: =($B$8/$B$10*COS(A111*D_R-B111)-H111^2*COS(B111-C111)+$B$9/$B$10*G111^2)/SIN(C111-B111) -> 0.2301933693
A112: 97 | B112: =FourBar2($B$8,$B$9,$B$10,1,1,A112*D_R) -> 0.2508911506 | C112: 2.049226917 | D112: =B112/D_R -> 14.37500405 | E112: =C112/D_R -> 117.4120536 | F112: 103.0370496 | G112: =$B$8/$B$9*SIN(A112*D_R-C112)/SIN(C112-B112) -> -0.2070105866 | H112: =$B$8/$B$10*SIN(A112*D_R-B112)/SIN(C112-B112) -> 0.6355391026 | I112: =($B$8/$B$10*COS(A112*D_R-B112)-H112^2*COS(B112-C112)+$B$9/$B$10*G112^2)/SIN(C112-B112) -> 0.2232774397
A113: 98 | B113: =FourBar2($B$8,$B$9,$B$10,1,1,A113*D_R) -> 0.2473027015 | C113: 2.060352829 | D113: =B113/D_R -> 14.16940106 | E113: =C113/D_R -> 118.0495214 | F113: 103.8801203 | G113: =$B$8/$B$9*SIN(A113*D_R-C113)/SIN(C113-B113) -> -0.2042045194 | H113: =$B$8/$B$10*SIN(A113*D_R-B113)/SIN(C113-B113) -> 0.6393767418 | I113: =($B$8/$B$10*COS(A113*D_R-B113)-H113^2*COS(B113-C113)+$B$9/$B$10*G113^2)/SIN(C113-B113) -> 0.2165073364
A114: 99 | B114: =FourBar2($B$8,$B$9,$B$10,1,1,A114*D_R) -> 0.2437627555 | C114: 2.071544695 | D114: =B114/D_R -> 13.9665771 | E114: =C114/D_R -> 118.6907681 | F114: 104.724191 | G114: =$B$8/$B$9*SIN(A114*D_R-C114)/SIN(C114-B114) -> -0.2014521942 | H114: =$B$8/$B$10*SIN(A114*D_R-B114)/SIN(C114-B114) -> 0.643097442 | I114: =($B$8/$B$10*COS(A114*D_R-B114)-H114^2*COS(B114-C114)+$B$9/$B$10*G114^2)/SIN(C114-B114) -> 0.209876057
A115: 100 | B115: =FourBar2($B$8,$B$9,$B$10,1,1,A115*D_R) -> 0.2402703927 | C115: 2.082800498 | D115: =B115/D_R -> 13.76647944 | E115: =C115/D_R -> 119.3356781 | F115: 105.5691986 | G115: =$B$8/$B$9*SIN(A115*D_R-C115)/SIN(C115-B115) -> -0.1987515579 | H115: =$B$8/$B$10*SIN(A115*D_R-B115)/SIN(C115-B115) -> 0.6467035655 | I115: =($B$8/$B$10*COS(A115*D_R-B115)-H115^2*COS(B115-C115)+$B$9/$B$10*G115^2)/SIN(C115-B115) -> 0.203376664
A116: 101 | B116: =FourBar2($B$8,$B$9,$B$10,1,1,A116*D_R) -> 0.2368247285 | C116: 2.094118255 | D116: =B116/D_R -> 13.56905743 | E116: =C116/D_R -> 119.9841378 | F116: 106.4150804 | G116: =$B$8/$B$9*SIN(A116*D_R-C116)/SIN(C116-B116) -> -0.1961005777 | H116: =$B$8/$B$10*SIN(A116*D_R-B116)/SIN(C116-B116) -> 0.650197354 | I116: =($B$8/$B$10*COS(A116*D_R-B116)-H116^2*COS(B116-C116)+$B$9/$B$10*G116^2)/SIN(C116-B116) -> 0.1970022736
A117: 102 | B117: =FourBar2($B$8,$B$9,$B$10,1,1,A117*D_R) -> 0.233424914 | C117: 2.105496026 | D117: =B117/D_R -> 13.37426241 | E117: =C117/D_R -> 120.6360361 | F117: 107.2617736 | G117: =$B$8/$B$9*SIN(A117*D_R-C117)/SIN(C117-B117) -> -0.1934972379 | H117: =$B$8/$B$10*SIN(A117*D_R-B117)/SIN(C117-B117) -> 0.6535809295 | I117: =($B$8/$B$10*COS(A117*D_R-B117)-H117^2*COS(B117-C117)+$B$9/$B$10*G117^2)/SIN(C117-B117) -> 0.1907460428
A118: 103 | B118: =FourBar2($B$8,$B$9,$B$10,1,1,A118*D_R) -> 0.2300701352 | C118: 2.116931904 | D118: =B118/D_R -> 13.18204774 | E118: =C118/D_R -> 121.2912636 | F118: 108.1092159 | G118: =$B$8/$B$9*SIN(A118*D_R-C118)/SIN(C118-B118) -> -0.1909395375 | H118: =$B$8/$B$10*SIN(A118*D_R-B118)/SIN(C118-B118) -> 0.6568562948 | I118: =($B$8/$B$10*COS(A118*D_R-B118)-H118^2*COS(B118-C118)+$B$9/$B$10*G118^2)/SIN(C118-B118) -> 0.1846011566
A119: 104 | B119: =FourBar2($B$8,$B$9,$B$10,1,1,A119*D_R) -> 0.2267596129 | C119: 2.128424017 | D119: =B119/D_R -> 12.99236878 | E119: =C119/D_R -> 121.9497132 | F119: 108.9573444 | G119: =$B$8/$B$9*SIN(A119*D_R-C119)/SIN(C119-B119) -> -0.1884254861 | H119: =$B$8/$B$10*SIN(A119*D_R-B119)/SIN(C119-B119) -> 0.6600253337 | I119: =($B$8/$B$10*COS(A119*D_R-B119)-H119^2*COS(B119-C119)+$B$9/$B$10*G119^2)/SIN(C119-B119) -> 0.1785608136
A120: 105 | B120: =FourBar2($B$8,$B$9,$B$10,1,1,A120*D_R) -> 0.2234926025 | C120: 2.139970526 | D120: =B120/D_R -> 12.80518288 | E120: =C120/D_R -> 122.6112794 | F120: 109.8060965 | G120: =$B$8/$B$9*SIN(A120*D_R-C120)/SIN(C120-B120) -> -0.1859531011 | H120: =$B$8/$B$10*SIN(A120*D_R-B120)/SIN(C120-B120) -> 0.6630898116 | I120: =($B$8/$B$10*COS(A120*D_R-B120)-H120^2*COS(B120-C120)+$B$9/$B$10*G120^2)/SIN(C120-B120) -> 0.1726182107
A121: 106 | B121: =FourBar2($B$8,$B$9,$B$10,1,1,A121*D_R) -> 0.2202683942 | C121: 2.151569619 | D121: =B121/D_R -> 12.62044935 | E121: =C121/D_R -> 123.2758585 | F121: 110.6554092 | G121: =$B$8/$B$9*SIN(A121*D_R-C121)/SIN(C121-B121) -> -0.1835204041 | H121: =$B$8/$B$10*SIN(A121*D_R-B121)/SIN(C121-B121) -> 0.6660513749 | I121: =($B$8/$B$10*COS(A121*D_R-B121)-H121^2*COS(B121-C121)+$B$9/$B$10*G121^2)/SIN(C121-B121) -> 0.1667665268
A122: 107 | B122: =FourBar2($B$8,$B$9,$B$10,1,1,A122*D_R) -> 0.2170863126 | C122: 2.163219515 | D122: =B122/D_R -> 12.4381295 | E122: =C122/D_R -> 123.9433484 | F122: 111.5052189 | G122: =$B$8/$B$9*SIN(A122*D_R-C122)/SIN(C122-B122) -> -0.1811254169 | H122: =$B$8/$B$10*SIN(A122*D_R-B122)/SIN(C122-B122) -> 0.6689115506 | I122: =($B$8/$B$10*COS(A122*D_R-B122)-H122^2*COS(B122-C122)+$B$9/$B$10*G122^2)/SIN(C122-B122) -> 0.1609989052
A123: 108 | B123: =FourBar2($B$8,$B$9,$B$10,1,1,A123*D_R) -> 0.2139457166 | C123: 2.174918456 | D123: =B123/D_R -> 12.25818661 | E123: =C123/D_R -> 124.6136483 | F123: 112.3554617 | G123: =$B$8/$B$9*SIN(A123*D_R-C123)/SIN(C123-B123) -> -0.1787661574 | H123: =$B$8/$B$10*SIN(A123*D_R-B123)/SIN(C123-B123) -> 0.6716717457 | I123: =($B$8/$B$10*COS(A123*D_R-B123)-H123^2*COS(B123-C123)+$B$9/$B$10*G123^2)/SIN(C123-B123) -> 0.155308435
A124: 109 | B124: =FourBar2($B$8,$B$9,$B$10,1,1,A124*D_R) -> 0.2108460002 | C124: 2.186664708 | D124: =B124/D_R -> 12.08058594 | E124: =C124/D_R -> 125.286659 | F124: 113.206073 | G124: =$B$8/$B$9*SIN(A124*D_R-C124)/SIN(C124-B124) -> -0.1764406356 | H124: =$B$8/$B$10*SIN(A124*D_R-B124)/SIN(C124-B124) -> 0.6743332459 | I124: =($B$8/$B$10*COS(A124*D_R-B124)-H124^2*COS(B124-C124)+$B$9/$B$10*G124^2)/SIN(C124-B124) -> 0.1496881302
A125: 110 | B125: =FourBar2($B$8,$B$9,$B$10,1,1,A125*D_R) -> 0.2077865919 | C125: 2.198456559 | D125: =B125/D_R -> 11.90529476 | E125: =C125/D_R -> 125.9622823 | F125: 114.0569875 | G125: =$B$8/$B$9*SIN(A125*D_R-C125)/SIN(C125-B125) -> -0.1741468493 | H125: =$B$8/$B$10*SIN(A125*D_R-B125)/SIN(C125-B125) -> 0.6768972142 | I125: =($B$8/$B$10*COS(A125*D_R-B125)-H125^2*COS(B125-C125)+$B$9/$B$10*G125^2)/SIN(C125-B125) -> 0.1441309088
A126: 111 | B126: =FourBar2($B$8,$B$9,$B$10,1,1,A126*D_R) -> 0.2047669555 | C126: 2.210292317 | D126: =B126/D_R -> 11.73228233 | E126: =C126/D_R -> 126.6404212 | F126: 114.9081389 | G126: =$B$8/$B$9*SIN(A126*D_R-C126)/SIN(C126-B126) -> -0.1718827785 | H126: =$B$8/$B$10*SIN(A126*D_R-B126)/SIN(C126-B126) -> 0.6793646889 | I126: =($B$8/$B$10*COS(A126*D_R-B126)-H126^2*COS(B126-C126)+$B$9/$B$10*G126^2)/SIN(C126-B126) -> 0.1386295683
A127: 112 | B127: =FourBar2($B$8,$B$9,$B$10,1,1,A127*D_R) -> 0.2017865901 | C127: 2.222170304 | D127: =B127/D_R -> 11.56151998 | E127: =C127/D_R -> 127.3209798 | F127: 115.7594598 | G127: =$B$8/$B$9*SIN(A127*D_R-C127)/SIN(C127-B127) -> -0.1696463813 | H127: =$B$8/$B$10*SIN(A127*D_R-B127)/SIN(C127-B127) -> 0.6817365814 | I127: =($B$8/$B$10*COS(A127*D_R-B127)-H127^2*COS(B127-C127)+$B$9/$B$10*G127^2)/SIN(C127-B127) -> 0.133176761
A128: 113 | B128: =FourBar2($B$8,$B$9,$B$10,1,1,A128*D_R) -> 0.1988450307 | C128: 2.234088861 | D128: =B128/D_R -> 11.39298104 | E128: =C128/D_R -> 128.0038628 | F128: 116.6108818 | G128: =$B$8/$B$9*SIN(A128*D_R-C128)/SIN(C128-B128) -> -0.1674355877 | H128: =$B$8/$B$10*SIN(A128*D_R-B128)/SIN(C128-B128) -> 0.6840136735 | I128: =($B$8/$B$10*COS(A128*D_R-B128)-H128^2*COS(B128-C128)+$B$9/$B$10*G128^2)/SIN(C128-B128) -> 0.1277649664
A129: 114 | B129: =FourBar2($B$8,$B$9,$B$10,1,1,A129*D_R) -> 0.1959418488 | C129: 2.246046338 | D129: =B129/D_R -> 11.22664097 | E129: =C129/D_R -> 128.6889758 | F129: 117.4623348 | G129: =$B$8/$B$9*SIN(A129*D_R-C129)/SIN(C129-B129) -> -0.1652482941 | H129: =$B$8/$B$10*SIN(A129*D_R-B129)/SIN(C129-B129) -> 0.6861966138 | I129: =($B$8/$B$10*COS(A129*D_R-B129)-H129^2*COS(B129-C129)+$B$9/$B$10*G129^2)/SIN(C129-B129) -> 0.1223864608
A130: 115 | B130: =FourBar2($B$8,$B$9,$B$10,1,1,A130*D_R) -> 0.1930766528 | C130: 2.258041097 | D130: =B130/D_R -> 11.06247733 | E130: =C130/D_R -> 129.3762248 | F130: 118.3137475 | G130: =$B$8/$B$9*SIN(A130*D_R-C130)/SIN(C130-B130) -> -0.1630823568 | H130: =$B$8/$B$10*SIN(A130*D_R-B130)/SIN(C130-B130) -> 0.6882859143 | I130: =($B$8/$B$10*COS(A130*D_R-B130)-H130^2*COS(B130-C130)+$B$9/$B$10*G130^2)/SIN(C130-B130) -> 0.1170332858
A131: 116 | B131: =FourBar2($B$8,$B$9,$B$10,1,1,A131*D_R) -> 0.1902490891 | C131: 2.270071506 | D131: =B131/D_R -> 10.90046986 | E131: =C131/D_R -> 130.0655165 | F131: 119.1650466 | G131: =$B$8/$B$9*SIN(A131*D_R-C131)/SIN(C131-B131) -> -0.1609355858 | H131: =$B$8/$B$10*SIN(A131*D_R-B131)/SIN(C131-B131) -> 0.6902819457 | I131: =($B$8/$B$10*COS(A131*D_R-B131)-H131^2*COS(B131-C131)+$B$9/$B$10*G131^2)/SIN(C131-B131) -> 0.1116972126
A132: 117 | B132: =FourBar2($B$8,$B$9,$B$10,1,1,A132*D_R) -> 0.1874588427 | C132: 2.282135941 | D132: =B132/D_R -> 10.74060052 | E132: =C132/D_R -> 130.7567577 | F132: 120.0161572 | G132: =$B$8/$B$9*SIN(A132*D_R-C132)/SIN(C132-B132) -> -0.1588057367 | H132: =$B$8/$B$10*SIN(A132*D_R-B132)/SIN(C132-B132) -> 0.6921849324 | I132: =($B$8/$B$10*COS(A132*D_R-B132)-H132^2*COS(B132-C132)+$B$9/$B$10*G132^2)/SIN(C132-B132) -> 0.1063697034
A133: 118 | B133: =FourBar2($B$8,$B$9,$B$10,1,1,A133*D_R) -> 0.1847056381 | C133: 2.294232778 | D133: =B133/D_R -> 10.58285352 | E133: =C133/D_R -> 131.4498554 | F133: 120.8670019 | G133: =$B$8/$B$9*SIN(A133*D_R-C133)/SIN(C133-B133) -> -0.1566905039 | H133: =$B$8/$B$10*SIN(A133*D_R-B133)/SIN(C133-B133) -> 0.693994947 | I133: =($B$8/$B$10*COS(A133*D_R-B133)-H133^2*COS(B133-C133)+$B$9/$B$10*G133^2)/SIN(C133-B133) -> 0.1010418701
A134: 119 | B134: =FourBar2($B$8,$B$9,$B$10,1,1,A134*D_R) -> 0.181989241 | C134: 2.306360393 | D134: =B134/D_R -> 10.42721543 | E134: =C134/D_R -> 132.1447166 | F134: 121.7175011 | G134: =$B$8/$B$9*SIN(A134*D_R-C134)/SIN(C134-B134) -> -0.1545875113 | H134: =$B$8/$B$10*SIN(A134*D_R-B134)/SIN(C134-B134) -> 0.6957119032 | I134: =($B$8/$B$10*COS(A134*D_R-B134)-H134^2*COS(B134-C134)+$B$9/$B$10*G134^2)/SIN(C134-B134) -> 0.09570442793
A135: 120 | B135: =FourBar2($B$8,$B$9,$B$10,1,1,A135*D_R) -> 0.1793094591 | C135: 2.318517161 | D135: =B135/D_R -> 10.27367523 | E135: =C135/D_R -> 132.8412481 | F135: 122.5675729 | G135: =$B$8/$B$9*SIN(A135*D_R-C135)/SIN(C135-B135) -> -0.1524943037 | H135: =$B$8/$B$10*SIN(A135*D_R-B135)/SIN(C135-B135) -> 0.6973355493 | I135: =($B$8/$B$10*COS(A135*D_R-B135)-H135^2*COS(B135-C135)+$B$9/$B$10*G135^2)/SIN(C135-B135) -> 0.0903476457
A136: 121 | B136: =FourBar2($B$8,$B$9,$B$10,1,1,A136*D_R) -> 0.1766661435 | C136: 2.330701451 | D136: =B136/D_R -> 10.12222441 | E136: =C136/D_R -> 133.5393564 | F136: 123.417132 | G136: =$B$8/$B$9*SIN(A136*D_R-C136)/SIN(C136-B136) -> -0.1504083365 | H136: =$B$8/$B$10*SIN(A136*D_R-B136)/SIN(C136-B136) -> 0.6988654591 | I136: =($B$8/$B$10*COS(A136*D_R-B136)-H136^2*COS(B136-C136)+$B$9/$B$10*G136^2)/SIN(C136-B136) -> 0.08496129039
A137: 122 | B137: =FourBar2($B$8,$B$9,$B$10,1,1,A137*D_R) -> 0.1740591909 | C137: 2.342911619 | D137: =B137/D_R -> 9.972857025 | E137: =C137/D_R -> 134.2389476 | F137: 124.2660905 | G137: =$B$8/$B$9*SIN(A137*D_R-C137)/SIN(C137-B137) -> -0.1483269653 | H137: =$B$8/$B$10*SIN(A137*D_R-B137)/SIN(C137-B137) -> 0.7003010231 | I137: =($B$8/$B$10*COS(A137*D_R-B137)-H137^2*COS(B137-C137)+$B$9/$B$10*G137^2)/SIN(C137-B137) -> 0.07953456685
A138: 123 | B138: =FourBar2($B$8,$B$9,$B$10,1,1,A138*D_R) -> 0.171488545 | C138: 2.355146014 | D138: =B138/D_R -> 9.825569861 | E138: =C138/D_R -> 134.9399268 | F138: 125.1143569 | G138: =$B$8/$B$9*SIN(A138*D_R-C138)/SIN(C138-B138) -> -0.1462474339 | H138: =$B$8/$B$10*SIN(A138*D_R-B138)/SIN(C138-B138) -> 0.701641438 | I138: =($B$8/$B$10*COS(A138*D_R-B138)-H138^2*COS(B138-C138)+$B$9/$B$10*G138^2)/SIN(C138-B138) -> 0.07405605122
A139: 124 | B139: =FourBar2($B$8,$B$9,$B$10,1,1,A139*D_R) -> 0.1689541985 | C139: 2.367402966 | D139: =B139/D_R -> 9.680362503 | E139: =C139/D_R -> 135.6421984 | F139: 125.9618359 | G139: =$B$8/$B$9*SIN(A139*D_R-C139)/SIN(C139-B139) -> -0.1441668616 | H139: =$B$8/$B$10*SIN(A139*D_R-B139)/SIN(C139-B139) -> 0.7028856952 | I139: =($B$8/$B$10*COS(A139*D_R-B139)-H139^2*COS(B139-C139)+$B$9/$B$10*G139^2)/SIN(C139-B139) -> 0.06851361768
A140: 125 | B140: =FourBar2($B$8,$B$9,$B$10,1,1,A140*D_R) -> 0.1664561957 | C140: 2.379680787 | D140: =B140/D_R -> 9.537237489 | E140: =C140/D_R -> 136.3456657 | F140: 126.8084282 | G140: =$B$8/$B$9*SIN(A140*D_R-C140)/SIN(C140-B140) -> -0.1420822294 | H140: =$B$8/$B$10*SIN(A140*D_R-B140)/SIN(C140-B140) -> 0.7040325677 | I140: =($B$8/$B$10*COS(A140*D_R-B140)-H140^2*COS(B140-C140)+$B$9/$B$10*G140^2)/SIN(C140-B140) -> 0.06289435764
A141: 126 | B141: =FourBar2($B$8,$B$9,$B$10,1,1,A141*D_R) -> 0.1639946351 | C141: 2.391977764 | D141: =B141/D_R -> 9.396200453 | E141: =C141/D_R -> 137.0502306 | F141: 127.6540301 | G141: =$B$8/$B$9*SIN(A141*D_R-C141)/SIN(C141-B141) -> -0.1399903642 | H141: =$B$8/$B$10*SIN(A141*D_R-B141)/SIN(C141-B141) -> 0.7050805955 | I141: =($B$8/$B$10*COS(A141*D_R-B141)-H141^2*COS(B141-C141)+$B$9/$B$10*G141^2)/SIN(C141-B141) -> 0.05718449057
A142: 127 | B142: =FourBar2($B$8,$B$9,$B$10,1,1,A142*D_R) -> 0.1615696717 | C142: 2.404292158 | D142: =B142/D_R -> 9.257260284 | E142: =C142/D_R -> 137.7557934 | F142: 128.4985331 | G142: =$B$8/$B$9*SIN(A142*D_R-C142)/SIN(C142-B142) -> -0.1378879229 | H142: =$B$8/$B$10*SIN(A142*D_R-B142)/SIN(C142-B142) -> 0.7060280702 | I142: =($B$8/$B$10*COS(A142*D_R-B142)-H142^2*COS(B142-C142)+$B$9/$B$10*G142^2)/SIN(C142-B142) -> 0.05136926551
A143: 128 | B143: =FourBar2($B$8,$B$9,$B$10,1,1,A143*D_R) -> 0.1591815206 | C143: 2.416622197 | D143: =B143/D_R -> 9.120429308 | E143: =C143/D_R -> 138.4622525 | F143: 129.3418232 | G143: =$B$8/$B$9*SIN(A143*D_R-C143)/SIN(C143-B143) -> -0.1357713733 | H143: =$B$8/$B$10*SIN(A143*D_R-B143)/SIN(C143-B143) -> 0.7068730164 | I143: =($B$8/$B$10*COS(A143*D_R-B143)-H143^2*COS(B143-C143)+$B$9/$B$10*G143^2)/SIN(C143-B143) -> 0.04543285211
A144: 129 | B144: =FourBar2($B$8,$B$9,$B$10,1,1,A144*D_R) -> 0.1568304605 | C144: 2.428966071 | D144: =B144/D_R -> 8.985723485 | E144: =C144/D_R -> 139.1695045 | F144: =E144-D144 -> 130.183781 | G144: =$B$8/$B$9*SIN(A144*D_R-C144)/SIN(C144-B144) -> -0.1336369744 | H144: =$B$8/$B$10*SIN(A144*D_R-B144)/SIN(C144-B144) -> 0.7076131721 | I144: =($B$8/$B$10*COS(A144*D_R-B144)-H144^2*COS(B144-C144)+$B$9/$B$10*G144^2)/SIN(C144-B144) -> 0.0393582202
A145: 130 | B145: =FourBar2($B$8,$B$9,$B$10,1,1,A145*D_R) -> 0.1545168371 | C145: 2.441321931 | D145: =B145/D_R -> 8.85316263 | E145: =C145/D_R -> 139.8774431 | F145: 131.0242805 | G145: =$B$8/$B$9*SIN(A145*D_R-C145)/SIN(C145-B145) -> -0.1314807544 | H145: =$B$8/$B$10*SIN(A145*D_R-B145)/SIN(C145-B145) -> 0.7082459667 | I145: =($B$8/$B$10*COS(A145*D_R-B145)-H145^2*COS(B145-C145)+$B$9/$B$10*G145^2)/SIN(C145-B145) -> 0.0331270064
A146: 131 | B146: =FourBar2($B$8,$B$9,$B$10,1,1,A146*D_R) -> 0.1522410678 | C146: 2.453687878 | D146: =B146/D_R -> 8.722770655 | E146: =C146/D_R -> 140.5859596 | F146: 131.863189 | G146: =$B$8/$B$9*SIN(A146*D_R-C146)/SIN(C146-B146) -> -0.129298486 | H146: =$B$8/$B$10*SIN(A146*D_R-B146)/SIN(C146-B146) -> 0.7087684966 | I146: =($B$8/$B$10*COS(A146*D_R-B146)-H146^2*COS(B146-C146)+$B$9/$B$10*G146^2)/SIN(C146-B146) -> 0.02671936651
A147: 132 | B147: =FourBar2($B$8,$B$9,$B$10,1,1,A147*D_R) -> 0.1500036462 | C147: 2.466061959 | D147: =B147/D_R -> 8.59457584 | E147: =C147/D_R -> 141.2949423 | F147: 132.7003664 | G147: =$B$8/$B$9*SIN(A147*D_R-C147)/SIN(C147-B147) -> -0.1270856598 | H147: =$B$8/$B$10*SIN(A147*D_R-B147)/SIN(C147-B147) -> 0.7091774975 | I147: =($B$8/$B$10*COS(A147*D_R-B147)-H147^2*COS(B147-C147)+$B$9/$B$10*G147^2)/SIN(C147-B147) -> 0.02011381198
A148: 133 | B148: =FourBar2($B$8,$B$9,$B$10,1,1,A148*D_R) -> 0.1478051472 | C148: 2.478442161 | D148: =B148/D_R -> 8.468611125 | E148: =C148/D_R -> 142.0042756 | F148: 133.5356645 | G148: =$B$8/$B$9*SIN(A148*D_R-C148)/SIN(C148-B148) -> -0.124837455 | H148: =$B$8/$B$10*SIN(A148*D_R-B148)/SIN(C148-B148) -> 0.7094693145 | I148: =($B$8/$B$10*COS(A148*D_R-B148)-H148^2*COS(B148-C148)+$B$9/$B$10*G148^2)/SIN(C148-B148) -> 0.01328702897
A149: 134 | B149: =FourBar2($B$8,$B$9,$B$10,1,1,A149*D_R) -> 0.1456462328 | C149: 2.490826404 | D149: =B149/D_R -> 8.34491444 | E149: =C149/D_R -> 142.7138405 | F149: 134.368926 | G149: =$B$8/$B$9*SIN(A149*D_R-C149)/SIN(C149-B149) -> -0.1225487066 | H149: =$B$8/$B$10*SIN(A149*D_R-B149)/SIN(C149-B149) -> 0.7096398683 | I149: =($B$8/$B$10*COS(A149*D_R-B149)-H149^2*COS(B149-C149)+$B$9/$B$10*G149^2)/SIN(C149-B149) -> 0.006213677912
A150: 135 | B150: =FourBar2($B$8,$B$9,$B$10,1,1,A150*D_R) -> 0.1435276584 | C150: 2.503212534 | D150: =B150/D_R -> 8.22352907 | E150: =C150/D_R -> 143.4235134 | F150: 135.1999843 | G150: =$B$8/$B$9*SIN(A150*D_R-C150)/SIN(C150-B150) -> -0.1202138698 | H150: =$B$8/$B$10*SIN(A150*D_R-B150)/SIN(C150-B150) -> 0.7096846183 | I150: =($B$8/$B$10*COS(A150*D_R-B150)-H150^2*COS(B150-C150)+$B$9/$B$10*G150^2)/SIN(C150-B150) -> -0.001133828055
A151: 136 | B151: =FourBar2($B$8,$B$9,$B$10,1,1,A151*D_R) -> 0.1414502799 | C151: 2.51559831 | D151: =B151/D_R -> 8.104504047 | E151: =C151/D_R -> 144.1331661 | F151: 136.028662 | G151: =$B$8/$B$9*SIN(A151*D_R-C151)/SIN(C151-B151) -> -0.11782698 | H151: =$B$8/$B$10*SIN(A151*D_R-B151)/SIN(C151-B151) -> 0.7095985208 | I151: =($B$8/$B$10*COS(A151*D_R-B151)-H151^2*COS(B151-C151)+$B$9/$B$10*G151^2)/SIN(C151-B151) -> -0.008785568082
A152: 137 | B152: =FourBar2($B$8,$B$9,$B$10,1,1,A152*D_R) -> 0.139415061 | C152: 2.527981401 | D152: =B152/D_R -> 7.987894598 | E152: =C152/D_R -> 144.842665 | F152: 136.8547704 | G152: =$B$8/$B$9*SIN(A152*D_R-C152)/SIN(C152-B152) -> -0.1153816097 | H152: =$B$8/$B$10*SIN(A152*D_R-B152)/SIN(C152-B152) -> 0.7093759836 | I152: =($B$8/$B$10*COS(A152*D_R-B152)-H152^2*COS(B152-C152)+$B$9/$B$10*G152^2)/SIN(C152-B152) -> -0.01677438399
A153: 138 | B153: =FourBar2($B$8,$B$9,$B$10,1,1,A153*D_R) -> 0.1374230824 | C153: 2.540359373 | D153: =B153/D_R -> 7.873762628 | E153: =C153/D_R -> 145.5518705 | F153: 137.6781079 | G153: =$B$8/$B$9*SIN(A153*D_R-C153)/SIN(C153-B153) -> -0.1128708198 | H153: =$B$8/$B$10*SIN(A153*D_R-B153)/SIN(C153-B153) -> 0.7090108151 | I153: =($B$8/$B$10*COS(A153*D_R-B153)-H153^2*COS(B153-C153)+$B$9/$B$10*G153^2)/SIN(C153-B153) -> -0.02513617823
A154: 139 | B154: =FourBar2($B$8,$B$9,$B$10,1,1,A154*D_R) -> 0.1354755503 | C154: 2.552729678 | D154: =B154/D_R -> 7.762177259 | E154: =C154/D_R -> 146.2606368 | F154: 138.4984595 | G154: =$B$8/$B$9*SIN(A154*D_R-C154)/SIN(C154-B154) -> -0.1102871066 | H154: =$B$8/$B$10*SIN(A154*D_R-B154)/SIN(C154-B154) -> 0.7084961677 | I154: =($B$8/$B$10*COS(A154*D_R-B154)-H154^2*COS(B154-C154)+$B$9/$B$10*G154^2)/SIN(C154-B154) -> -0.03391024147
A155: 140 | B155: =FourBar2($B$8,$B$9,$B$10,1,1,A155*D_R) -> 0.1335738075 | C155: 2.565089641 | D155: =B155/D_R -> 7.653215424 | E155: =C155/D_R -> 146.9688105 | F155: 139.3155951 | G155: =$B$8/$B$9*SIN(A155*D_R-C155)/SIN(C155-B155) -> -0.1076223428 | H155: =$B$8/$B$10*SIN(A155*D_R-B155)/SIN(C155-B155) -> 0.7078244763 | I155: =($B$8/$B$10*COS(A155*D_R-B155)-H155^2*COS(B155-C155)+$B$9/$B$10*G155^2)/SIN(C155-B155) -> -0.04313961178
A156: 141 | B156: =FourBar2($B$8,$B$9,$B$10,1,1,A156*D_R) -> 0.1317193445 | C156: 2.577436451 | D156: =B156/D_R -> 7.54696252 | E156: =C156/D_R -> 147.6762306 | F156: 140.1292681 | G156: =$B$8/$B$9*SIN(A156*D_R-C156)/SIN(C156-B156) -> -0.1048677132 | H156: =$B$8/$B$10*SIN(A156*D_R-B156)/SIN(C156-B156) -> 0.7069873888 | I156: =($B$8/$B$10*COS(A156*D_R-B156)-H156^2*COS(B156-C156)+$B$9/$B$10*G156^2)/SIN(C156-B156) -> -0.05287146687
A157: 142 | B157: =FourBar2($B$8,$B$9,$B$10,1,1,A157*D_R) -> 0.1299138121 | C157: 2.589767141 | D157: =B157/D_R -> 7.443513135 | E157: =C157/D_R -> 148.3827271 | F157: 140.939214 | G157: =$B$8/$B$9*SIN(A157*D_R-C157)/SIN(C157-B157) -> -0.102013643 | H157: =$B$8/$B$10*SIN(A157*D_R-B157)/SIN(C157-B157) -> 0.7059756905 | I157: =($B$8/$B$10*COS(A157*D_R-B157)-H157^2*COS(B157-C157)+$B$9/$B$10*G157^2)/SIN(C157-B157) -> -0.06315755069
A158: 143 | B158: =FourBar2($B$8,$B$9,$B$10,1,1,A158*D_R) -> 0.1281590355 | C158: 2.602078577 | D158: =B158/D_R -> 7.342971842 | E158: =C158/D_R -> 149.0881204 | F158: 141.7451486 | G158: =$B$8/$B$9*SIN(A158*D_R-C158)/SIN(C158-B158) -> -0.0990497194 | H158: =$B$8/$B$10*SIN(A158*D_R-B158)/SIN(C158-B158) -> 0.7047792208 | I158: =($B$8/$B$10*COS(A158*D_R-B158)-H158^2*COS(B158-C158)+$B$9/$B$10*G158^2)/SIN(C158-B158) -> -0.07405463436
A159: 144 | B159: =FourBar2($B$8,$B$9,$B$10,1,1,A159*D_R) -> 0.1264570295 | C159: 2.614367437 | D159: =B159/D_R -> 7.245454081 | E159: =C159/D_R -> 149.7922202 | F159: 142.5467662 | G159: =$B$8/$B$9*SIN(A159*D_R-C159)/SIN(C159-B159) -> -0.0959646057 | H159: =$B$8/$B$10*SIN(A159*D_R-B159)/SIN(C159-B159) -> 0.7033867803 | I159: =($B$8/$B$10*COS(A159*D_R-B159)-H159^2*COS(B159-C159)+$B$9/$B$10*G159^2)/SIN(C159-B159) -> -0.08562501074
A160: 145 | B160: =FourBar2($B$8,$B$9,$B$10,1,1,A160*D_R) -> 0.1248100156 | C160: 2.626630196 | D160: =B160/D_R -> 7.151087133 | E160: =C160/D_R -> 150.4948245 | F160: 143.3437374 | G160: =$B$8/$B$9*SIN(A160*D_R-C160)/SIN(C160-B160) -> -0.09274594676 | H160: =$B$8/$B$10*SIN(A160*D_R-B160)/SIN(C160-B160) -> 0.7017860307 | I160: =($B$8/$B$10*COS(A160*D_R-B160)-H160^2*COS(B160-C160)+$B$9/$B$10*G160^2)/SIN(C160-B160) -> -0.0979370197
A161: 146 | B161: =FourBar2($B$8,$B$9,$B$10,1,1,A161*D_R) -> 0.1232204403 | C161: 2.6388631 | D161: =B161/D_R -> 7.060011181 | E161: =C161/D_R -> 151.1957183 | F161: 144.1357072 | G161: =$B$8/$B$9*SIN(A161*D_R-C161)/SIN(C161-B161) -> -0.08938026613 | H161: =$B$8/$B$10*SIN(A161*D_R-B161)/SIN(C161-B161) -> 0.6999633841 | I161: =($B$8/$B$10*COS(A161*D_R-B161)-H161^2*COS(B161-C161)+$B$9/$B$10*G161^2)/SIN(C161-B161) -> -0.1110655992
A162: 147 | B162: =FourBar2($B$8,$B$9,$B$10,1,1,A162*D_R) -> 0.1216909964 | C162: 2.651062149 | D162: =B162/D_R -> 6.972380496 | E162: =C162/D_R -> 151.8946724 | F162: 144.9222919 | G162: =$B$8/$B$9*SIN(A162*D_R-C162)/SIN(C162-B162) -> -0.08585285404 | H162: =$B$8/$B$10*SIN(A162*D_R-B162)/SIN(C162-B162) -> 0.6979038831 | I162: =($B$8/$B$10*COS(A162*D_R-B162)-H162^2*COS(B162-C162)+$B$9/$B$10*G162^2)/SIN(C162-B162) -> -0.1250928535
A163: 148 | B163: =FourBar2($B$8,$B$9,$B$10,1,1,A163*D_R) -> 0.1202246445 | C163: 2.663223068 | D163: =B163/D_R -> 6.888364722 | E163: =C163/D_R -> 152.5914417 | F163: 145.703077 | G163: =$B$8/$B$9*SIN(A163*D_R-C163)/SIN(C163-B163) -> -0.08214764621 | H163: =$B$8/$B$10*SIN(A163*D_R-B163)/SIN(C163-B163) -> 0.6955910704 | I163: =($B$8/$B$10*COS(A163*D_R-B163)-H163^2*COS(B163-C163)+$B$9/$B$10*G163^2)/SIN(C163-B163) -> -0.1401086257
A164: 149 | B164: =FourBar2($B$8,$B$9,$B$10,1,1,A164*D_R) -> 0.1188246387 | C164: 2.675341279 | D164: =B164/D_R -> 6.8081503 | E164: =C164/D_R -> 153.2857641 | F164: 146.4776138 | G164: =$B$8/$B$9*SIN(A164*D_R-C164)/SIN(C164-B164) -> -0.0782470936 | H164: =$B$8/$B$10*SIN(A164*D_R-B164)/SIN(C164-B164) -> 0.6930068493 | I164: =($B$8/$B$10*COS(A164*D_R-B164)-H164^2*COS(B164-C164)+$B$9/$B$10*G164^2)/SIN(C164-B164) -> -0.1562110557
A165: 150 | B165: =FourBar2($B$8,$B$9,$B$10,1,1,A165*D_R) -> 0.1174945533 | C165: 2.687411876 | D165: =B165/D_R -> 6.731942021 | E165: =C165/D_R -> 153.9773583 | F165: 147.2454163 | G165: =$B$8/$B$9*SIN(A165*D_R-C165)/SIN(C165-B165) -> -0.07413202342 | H165: =$B$8/$B$10*SIN(A165*D_R-B165)/SIN(C165-B165) -> 0.6901313336 | I165: =($B$8/$B$10*COS(A165*D_R-B165)-H165^2*COS(B165-C165)+$B$9/$B$10*G165^2)/SIN(C165-B165) -> -0.1735070959
A166: 151 | B166: =FourBar2($B$8,$B$9,$B$10,1,1,A166*D_R) -> 0.1162383124 | C166: 2.699429586 | D166: =B166/D_R -> 6.659964719 | E166: =C166/D_R -> 154.6659224 | F166: 148.0059577 | G166: =$B$8/$B$9*SIN(A166*D_R-C166)/SIN(C166-B166) -> -0.0697814925 | H166: =$B$8/$B$10*SIN(A166*D_R-B166)/SIN(C166-B166) -> 0.6869426907 | I166: =($B$8/$B$10*COS(A166*D_R-B166)-H166^2*COS(B166-C166)+$B$9/$B$10*G166^2)/SIN(C166-B166) -> -0.1921129487
A167: 152 | B167: =FourBar2($B$8,$B$9,$B$10,1,1,A167*D_R) -> 0.1150602222 | C167: 2.711388739 | D167: =B167/D_R -> 6.592465122 | E167: =C167/D_R -> 155.3511314 | F167: 148.7586662 | G167: =$B$8/$B$9*SIN(A167*D_R-C167)/SIN(C167-B167) -> -0.06517263458 | H167: =$B$8/$B$10*SIN(A167*D_R-B167)/SIN(C167-B167) -> 0.6834169767 | I167: =($B$8/$B$10*COS(A167*D_R-B167)-H167^2*COS(B167-C167)+$B$9/$B$10*G167^2)/SIN(C167-B167) -> -0.2121543732
A168: 153 | B168: =FourBar2($B$8,$B$9,$B$10,1,1,A168*D_R) -> 0.1139650059 | C168: 2.723283226 | D168: =B168/D_R -> 6.529713849 | E168: =C168/D_R -> 156.0326353 | F168: 149.5029214 | G168: =$B$8/$B$9*SIN(A168*D_R-C168)/SIN(C168-B168) -> -0.06028050425 | H168: =$B$8/$B$10*SIN(A168*D_R-B168)/SIN(C168-B168) -> 0.6795279682 | I168: =($B$8/$B$10*COS(A168*D_R-B168)-H168^2*COS(B168-C168)+$B$9/$B$10*G168^2)/SIN(C168-B168) -> -0.2337667954
A169: 154 | B169: =FourBar2($B$8,$B$9,$B$10,1,1,A169*D_R) -> 0.1129578413 | C169: 2.73510646 | D169: =B169/D_R -> 6.472007571 | E169: =C169/D_R -> 156.7100567 | F169: 150.2380491 | G169: =$B$8/$B$9*SIN(A169*D_R-C169)/SIN(C169-B169) -> -0.05507792126 | H169: =$B$8/$B$10*SIN(A169*D_R-B169)/SIN(C169-B169) -> 0.6752469951 | I169: =($B$8/$B$10*COS(A169*D_R-B169)-H169^2*COS(B169-C169)+$B$9/$B$10*G169^2)/SIN(C169-B169) -> -0.2570951316
A170: 155 | B170: =FourBar2($B$8,$B$9,$B$10,1,1,A170*D_R) -> 0.1120444014 | C170: 2.746851331 | D170: =B170/D_R -> 6.419671318 | E170: =C170/D_R -> 157.3829882 | F170: 150.9633169 | G170: =$B$8/$B$9*SIN(A170*D_R-C170)/SIN(C170-B170) -> -0.04953532095 | H170: =$B$8/$B$10*SIN(A170*D_R-B170)/SIN(C170-B170) -> 0.6705427789 | I170: =($B$8/$B$10*COS(A170*D_R-B170)-H170^2*COS(B170-C170)+$B$9/$B$10*G170^2)/SIN(C170-B170) -> -0.2822932111
A171: 156 | B171: =FourBar2($B$8,$B$9,$B$10,1,1,A171*D_R) -> 0.1112308967 | C171: 2.758510159 | D171: =B171/D_R -> 6.373060934 | E171: =C171/D_R -> 158.0509898 | F171: 151.6779289 | G171: =$B$8/$B$9*SIN(A171*D_R-C171)/SIN(C171-B171) -> -0.04362061823 | H171: =$B$8/$B$10*SIN(A171*D_R-B171)/SIN(C171-B171) -> 0.6653812863 | I171: =($B$8/$B$10*COS(A171*D_R-B171)-H171^2*COS(B171-C171)+$B$9/$B$10*G171^2)/SIN(C171-B171) -> -0.3095226513
A172: 157 | B172: =FourBar2($B$8,$B$9,$B$10,1,1,A172*D_R) -> 0.1105241208 | C172: 2.770074645 | D172: =B172/D_R -> 6.332565658 | E172: =C172/D_R -> 158.7135861 | F172: 152.3810204 | G172: =$B$8/$B$9*SIN(A172*D_R-C172)/SIN(C172-B172) -> -0.03729909541 | H172: =$B$8/$B$10*SIN(A172*D_R-B172)/SIN(C172-B172) -> 0.6597256081 | I172: =($B$8/$B$10*COS(A172*D_R-B172)-H172^2*COS(B172-C172)+$B$9/$B$10*G172^2)/SIN(C172-B172) -> -0.3389510039
A173: 158 | B173: =FourBar2($B$8,$B$9,$B$10,1,1,A173*D_R) -> 0.1099314967 | C173: 2.78153582 | D173: =B173/D_R -> 6.298610795 | E173: =C173/D_R -> 159.3702631 | F173: 153.0716523 | G173: =$B$8/$B$9*SIN(A173*D_R-C173)/SIN(C173-B173) -> -0.03053332756 | H173: =$B$8/$B$10*SIN(A173*D_R-B173)/SIN(C173-B173) -> 0.6535358784 | I173: =($B$8/$B$10*COS(A173*D_R-B173)-H173^2*COS(B173-C173)+$B$9/$B$10*G173^2)/SIN(C173-B173) -> -0.3707489486
A174: 159 | B174: =FourBar2($B$8,$B$9,$B$10,1,1,A174*D_R) -> 0.1094611242 | C174: 2.792883995 | D174: =B174/D_R -> 6.271660439 | E174: =C174/D_R -> 160.0204656 | F174: 153.7488051 | G174: =$B$8/$B$9*SIN(A174*D_R-C174)/SIN(C174-B174) -> -0.02328316273 | H174: =$B$8/$B$10*SIN(A174*D_R-B174)/SIN(C174-B174) -> 0.6467692537 | I174: =($B$8/$B$10*COS(A174*D_R-B174)-H174^2*COS(B174-C174)+$B$9/$B$10*G174^2)/SIN(C174-B174) -> -0.4050862678
A175: 160 | B175: =FourBar2($B$8,$B$9,$B$10,1,1,A175*D_R) -> 0.1091218277 | C175: 2.804108704 | D175: =B175/D_R -> 6.252220181 | E175: =C175/D_R -> 160.6635941 | F175: 154.4113739 | G175: =$B$8/$B$9*SIN(A175*D_R-C175)/SIN(C175-B175) -> -0.01550577925 | H175: =$B$8/$B$10*SIN(A175*D_R-B175)/SIN(C175-B175) -> 0.6393799738 | I175: =($B$8/$B$10*COS(A175*D_R-B175)-H175^2*COS(B175-C175)+$B$9/$B$10*G175^2)/SIN(C175-B175) -> -0.4421262964
A176: 161 | B176: =FourBar2($B$8,$B$9,$B$10,1,1,A176*D_R) -> 0.1089232009 | C176: 2.815198662 | D176: =B176/D_R -> 6.240839705 | E176: =C176/D_R -> 161.2990018 | F176: 155.0581621 | G176: =$B$8/$B$9*SIN(A176*D_R-C176)/SIN(C176-B176) -> -0.007155847499 | H176: =$B$8/$B$10*SIN(A176*D_R-B176)/SIN(C176-B176) -> 0.6313195367 | I176: =($B$8/$B$10*COS(A176*D_R-B176)-H176^2*COS(B176-C176)+$B$9/$B$10*G176^2)/SIN(C176-B176) -> -0.4820185043
A177: 162 | B177: =FourBar2($B$8,$B$9,$B$10,1,1,A177*D_R) -> 0.1088756487 | C177: 2.826141713 | D177: =B177/D_R -> 6.238115162 | E177: =C177/D_R -> 161.9259925 | F177: 155.6878773 | G177: =$B$8/$B$9*SIN(A177*D_R-C177)/SIN(C177-B177) -> 0.001814170826 | H177: =$B$8/$B$10*SIN(A177*D_R-B177)/SIN(C177-B177) -> 0.6225370209 | I177: =($B$8/$B$10*COS(A177*D_R-B177)-H177^2*COS(B177-C177)+$B$9/$B$10*G177^2)/SIN(C177-B177) -> -0.5248888585
A178: 163 | B178: =FourBar2($B$8,$B$9,$B$10,1,1,A178*D_R) -> 0.1089904214 | C178: 2.836924796 | D178: =B178/D_R -> 6.244691154 | E178: =C178/D_R -> 162.5438176 | F178: 156.2991264 | G178: =$B$8/$B$9*SIN(A178*D_R-C178)/SIN(C178-B178) -> 0.01145354729 | H178: =$B$8/$B$10*SIN(A178*D_R-B178)/SIN(C178-B178) -> 0.612979598 | I178: =($B$8/$B$10*COS(A178*D_R-B178)-H178^2*COS(B178-C178)+$B$9/$B$10*G178^2)/SIN(C178-B178) -> -0.5708276296
A179: 164 | B179: =FourBar2($B$8,$B$9,$B$10,1,1,A179*D_R) -> 0.1092796397 | C179: 2.847533915 | D179: =B179/D_R -> 6.261262144 | E179: =C179/D_R -> 163.1516754 | F179: 156.8904132 | G179: =$B$8/$B$9*SIN(A179*D_R-C179)/SIN(C179-B179) -> 0.02181259159 | H179: =$B$8/$B$10*SIN(A179*D_R-B179)/SIN(C179-B179) -> 0.6025932829 | I179: =($B$8/$B$10*COS(A179*D_R-B179)-H179^2*COS(B179-C179)+$B$9/$B$10*G179^2)/SIN(C179-B179) -> -0.6198743841
A180: 165 | B180: =FourBar2($B$8,$B$9,$B$10,1,1,A180*D_R) -> 0.1097563047 | C180: 2.857954132 | D180: =B180/D_R -> 6.288573035 | E180: =C180/D_R -> 163.7487098 | F180: 157.4601368 | G180: =$B$8/$B$9*SIN(A180*D_R-C180)/SIN(C180-B180) -> 0.03294169003 | H180: =$B$8/$B$10*SIN(A180*D_R-B180)/SIN(C180-B180) -> 0.5913239704 | I180: =($B$8/$B$10*COS(A180*D_R-B180)-H180^2*COS(B180-C180)+$B$9/$B$10*G180^2)/SIN(C180-B180) -> -0.6720000592
A181: 166 | B181: =FourBar2($B$8,$B$9,$B$10,1,1,A181*D_R) -> 0.1104342884 | C181: 2.868169571 | D181: =B181/D_R -> 6.327418636 | E181: =C181/D_R -> 164.3340113 | F181: 158.0065927 | G181: =$B$8/$B$9*SIN(A181*D_R-C181)/SIN(C181-B181) -> 0.04489003151 | H181: =$B$8/$B$10*SIN(A181*D_R-B181)/SIN(C181-B181) -> 0.5791188102 | I181: =($B$8/$B$10*COS(A181*D_R-B181)-H181^2*COS(B181-C181)+$B$9/$B$10*G181^2)/SIN(C181-B181) -> -0.7270862872
A182: 167 | B182: =FourBar2($B$8,$B$9,$B$10,1,1,A182*D_R) -> 0.1113282992 | C182: 2.878163456 | D182: =B182/D_R -> 6.378641687 | E182: =C182/D_R -> 164.9066188 | F182: 158.5279771 | G182: =$B$8/$B$9*SIN(A182*D_R-C182)/SIN(C182-B182) -> 0.05770398042 | H182: =$B$8/$B$10*SIN(A182*D_R-B182)/SIN(C182-B182) -> 0.5659279621 | I182: =($B$8/$B$10*COS(A182*D_R-B182)-H182^2*COS(B182-C182)+$B$9/$B$10*G182^2)/SIN(C182-B182) -> -0.784902543
A183: 168 | B183: =FourBar2($B$8,$B$9,$B$10,1,1,A183*D_R) -> 0.1124538162 | C183: 2.887918187 | D183: =B183/D_R -> 6.443129057 | E183: =C183/D_R -> 165.4655237 | F183: 159.0223946 | G183: =$B$8/$B$9*SIN(A183*D_R-C183)/SIN(C183-B183) -> 0.07142506971 | H183: =$B$8/$B$10*SIN(A183*D_R-B183)/SIN(C183-B183) -> 0.5517067618 | I183: =($B$8/$B$10*COS(A183*D_R-B183)-H183^2*COS(B183-C183)+$B$9/$B$10*G183^2)/SIN(C183-B183) -> -0.8450822588
A184: 169 | B184: =FourBar2($B$8,$B$9,$B$10,1,1,A184*D_R) -> 0.1138269836 | C184: 2.897415444 | D184: =B184/D_R -> 6.521805754 | E184: =C184/D_R -> 166.0096765 | F184: 159.4878707 | G184: =$B$8/$B$9*SIN(A184*D_R-C184)/SIN(C184-B184) -> 0.08608761148 | H184: =$B$8/$B$10*SIN(A184*D_R-B184)/SIN(C184-B184) -> 0.5364182997 | I184: =($B$8/$B$10*COS(A184*D_R-B184)-H184^2*COS(B184-C184)+$B$9/$B$10*G184^2)/SIN(C184-B184) -> -0.9070997685
A185: 170 | B185: =FourBar2($B$8,$B$9,$B$10,1,1,A185*D_R) -> 0.115464462 | C185: 2.906636354 | D185: =B185/D_R -> 6.615626359 | E185: =C185/D_R -> 166.5379957 | F185: 159.9223693 | G185: =$B$8/$B$9*SIN(A185*D_R-C185)/SIN(C185-B185) -> 0.1017159591 | H185: =$B$8/$B$10*SIN(A185*D_R-B185)/SIN(C185-B185) -> 0.5200363749 | I185: =($B$8/$B$10*COS(A185*D_R-B185)-H185^2*COS(B185-C185)+$B$9/$B$10*G185^2)/SIN(C185-B185) -> -0.9702507745
A186: 171 | B186: =FourBar2($B$8,$B$9,$B$10,1,1,A186*D_R) -> 0.1173832286 | C186: 2.915561702 | D186: =B186/D_R -> 6.725563584 | E186: =C186/D_R -> 167.0493804 | F186: 160.3238169 | G186: =$B$8/$B$9*SIN(A186*D_R-C186)/SIN(C186-B186) -> 0.1183215056 | H186: =$B$8/$B$10*SIN(A186*D_R-B186)/SIN(C186-B186) -> 0.5025487358 | I186: =($B$8/$B$10*COS(A186*D_R-B186)-H186^2*COS(B186-C186)+$B$9/$B$10*G186^2)/SIN(C186-B186) -> -1.033639846
A187: 172 | B187: =FourBar2($B$8,$B$9,$B$10,1,1,A187*D_R) -> 0.1196003233 | C187: 2.924172207 | D187: =B187/D_R -> 6.852593753 | E187: =C187/D_R -> 167.542726 | F187: 160.6901323 | G187: =$B$8/$B$9*SIN(A187*D_R-C187)/SIN(C187-B187) -> 0.1358995637 | H187: =$B$8/$B$10*SIN(A187*D_R-B187)/SIN(C187-B187) -> 0.4839604468 | I187: =($B$8/$B$10*COS(A187*D_R-B187)-H187^2*COS(B187-C187)+$B$9/$B$10*G187^2)/SIN(C187-B187) -> -1.096179086
A188: 173 | B188: =FourBar2($B$8,$B$9,$B$10,1,1,A188*D_R) -> 0.1221325419 | C188: 2.93244885 | D188: =B188/D_R -> 6.997679195 | E188: =C188/D_R -> 168.0169427 | F188: 161.0192635 | G188: =$B$8/$B$9*SIN(A188*D_R-C188)/SIN(C188-B188) -> 0.1544263453 | H188: =$B$8/$B$10*SIN(A188*D_R-B188)/SIN(C188-B188) -> 0.4642971495 | I188: =($B$8/$B$10*COS(A188*D_R-B188)-H188^2*COS(B188-C188)+$B$9/$B$10*G188^2)/SIN(C188-B188) -> -1.156602263
A189: 174 | B189: =FourBar2($B$8,$B$9,$B$10,1,1,A189*D_R) -> 0.1249960788 | C189: 2.940373261 | D189: =B189/D_R -> 7.161747773 | E189: =C189/D_R -> 168.4709781 | F189: 161.3092303 | G189: =$B$8/$B$9*SIN(A189*D_R-C189)/SIN(C189-B189) -> 0.1738563196 | H189: =$B$8/$B$10*SIN(A189*D_R-B189)/SIN(C189-B189) -> 0.4436079146 | I189: =($B$8/$B$10*COS(A189*D_R-B189)-H189^2*COS(B189-C189)+$B$9/$B$10*G189^2)/SIN(C189-B189) -> -1.213498129
A190: 175 | B190: =FourBar2($B$8,$B$9,$B$10,1,1,A190*D_R) -> 0.1282061291 | C190: 2.947928147 | D190: =B190/D_R -> 7.345670105 | E190: =C190/D_R -> 168.9038412 | F190: 161.558171 | G190: =$B$8/$B$9*SIN(A190*D_R-C190)/SIN(C190-B190) -> 0.1941202814 | H190: =$B$8/$B$10*SIN(A190*D_R-B190)/SIN(C190-B190) -> 0.4219673279 | I190: =($B$8/$B$10*COS(A190*D_R-B190)-H190^2*COS(B190-C190)+$B$9/$B$10*G190^2)/SIN(C190-B190) -> -1.265365024
A191: 176 | B191: =FourBar2($B$8,$B$9,$B$10,1,1,A191*D_R) -> 0.1317764661 | C191: 2.955097748 | D191: =B191/D_R -> 7.550235348 | E191: =C191/D_R -> 169.314629 | F191: 161.7643936 | G191: =$B$8/$B$9*SIN(A191*D_R-C191)/SIN(C191-B191) -> 0.2151244734 | H191: =$B$8/$B$10*SIN(A191*D_R-B191)/SIN(C191-B191) -> 0.3994764389 | I191: =($B$8/$B$10*COS(A191*D_R-B191)-H191^2*COS(B191-C191)+$B$9/$B$10*G191^2)/SIN(C191-B191) -> -1.31068621
A192: 177 | B192: =FourBar2($B$8,$B$9,$B$10,1,1,A192*D_R) -> 0.1357190151 | C192: 2.961868293 | D192: =B192/D_R -> 7.776126766 | E192: =C192/D_R -> 169.7025527 | F192: 161.9264259 | G192: =$B$8/$B$9*SIN(A192*D_R-C192)/SIN(C192-B192) -> 0.2367510694 | H192: =$B$8/$B$10*SIN(A192*D_R-B192)/SIN(C192-B192) -> 0.376262241 | I192: =($B$8/$B$10*COS(A192*D_R-B192)-H192^2*COS(B192-C192)+$B$9/$B$10*G192^2)/SIN(C192-B192) -> -1.348021807
A193: 178 | B193: =FourBar2($B$8,$B$9,$B$10,1,1,A193*D_R) -> 0.1400434485 | C193: 2.968228443 | D193: =B193/D_R -> 8.023898547 | E193: =C193/D_R -> 170.0669624 | F193: 162.0430638 | G193: =$B$8/$B$9*SIN(A193*D_R-C193)/SIN(C193-B193) -> 0.2588602267 | H193: =$B$8/$B$10*SIN(A193*D_R-B193)/SIN(C193-B193) -> 0.3524754578 | I193: =($B$8/$B$10*COS(A193*D_R-B193)-H193^2*COS(B193-C193)+$B$9/$B$10*G193^2)/SIN(C193-B193) -> -1.376109345
A194: 179 | B194: =FourBar2($B$8,$B$9,$B$10,1,1,A194*D_R) -> 0.1447568314 | C194: 2.974169665 | D194: =B194/D_R -> 8.293955493 | E194: =C194/D_R -> 170.4073694 | F194: 162.1134139 | G194: =$B$8/$B$9*SIN(A194*D_R-C194)/SIN(C194-B194) -> 0.2812937612 | H194: =$B$8/$B$10*SIN(A194*D_R-B194)/SIN(C194-B194) -> 0.3282865788 | I194: =($B$8/$B$10*COS(A194*D_R-B194)-H194^2*COS(B194-C194)+$B$9/$B$10*G194^2)/SIN(C194-B194) -> -1.393961751
A195: 180 | B195: =FourBar2($B$8,$B$9,$B$10,1,1,A195*D_R) -> 0.1498633446 | C195: 2.97968654 | D195: =B195/D_R -> 8.586537148 | E195: =C195/D_R -> 170.723463 | F195: 162.1369258 | G195: =$B$8/$B$9*SIN(A195*D_R-C195)/SIN(C195-B195) -> 0.3038802997 | H195: =$B$8/$B$10*SIN(A195*D_R-B195)/SIN(C195-B195) -> 0.3038802997 | I195: =($B$8/$B$10*COS(A195*D_R-B195)-H195^2*COS(B195-C195)+$B$9/$B$10*G195^2)/SIN(C195-B195) -> -1.400949972
A196: 181 | B196: =FourBar2($B$8,$B$9,$B$10,1,1,A196*D_R) -> 0.1553641078 | C196: 2.984776942 | D196: =B196/D_R -> 8.901707668 | E196: =C196/D_R -> 171.0151216 | F196: 162.1134139 | G196: =$B$8/$B$9*SIN(A196*D_R-C196)/SIN(C196-B196) -> 0.3264415621 | H196: =$B$8/$B$10*SIN(A196*D_R-B196)/SIN(C196-B196) -> 0.2794487445 | I196: =($B$8/$B$10*COS(A196*D_R-B196)-H196^2*COS(B196-C196)+$B$9/$B$10*G196^2)/SIN(C196-B196) -> -1.396858287
A197: 182 | B197: =FourBar2($B$8,$B$9,$B$10,1,1,A197*D_R) -> 0.1612571191 | C197: 2.989442113 | D197: =B197/D_R -> 9.239352339 | E197: =C197/D_R -> 171.2824162 | F197: 162.0430638 | G197: =$B$8/$B$9*SIN(A197*D_R-C197)/SIN(C197-B197) -> 0.3487992565 | H197: =$B$8/$B$10*SIN(A197*D_R-B197)/SIN(C197-B197) -> 0.2551840255 | I197: =($B$8/$B$10*COS(A197*D_R-B197)-H197^2*COS(B197-C197)+$B$9/$B$10*G197^2)/SIN(C197-B197) -> -1.381903775
A198: 183 | B198: =FourBar2($B$8,$B$9,$B$10,1,1,A198*D_R) -> 0.1675373147 | C198: 2.993686593 | D198: =B198/D_R -> 9.599181041 | E198: =C198/D_R -> 171.5256069 | F198: 161.9264259 | G198: =$B$8/$B$9*SIN(A198*D_R-C198)/SIN(C198-B198) -> 0.3707819743 | H198: =$B$8/$B$10*SIN(A198*D_R-B198)/SIN(C198-B198) -> 0.2312708028 | I198: =($B$8/$B$10*COS(A198*D_R-B198)-H198^2*COS(B198-C198)+$B$9/$B$10*G198^2)/SIN(C198-B198) -> -1.356716847
A199: 184 | B199: =FourBar2($B$8,$B$9,$B$10,1,1,A199*D_R) -> 0.1741967458 | C199: 2.997518027 | D199: =B199/D_R -> 9.980738342 | E199: =C199/D_R -> 171.745132 | F199: 161.7643936 | G199: =$B$8/$B$9*SIN(A199*D_R-C199)/SIN(C199-B199) -> 0.392231472 | H199: =$B$8/$B$10*SIN(A199*D_R-B199)/SIN(C199-B199) -> 0.2078795065 | I199: =($B$8/$B$10*COS(A199*D_R-B199)-H199^2*COS(B199-C199)+$B$9/$B$10*G199^2)/SIN(C199-B199) -> -1.322285939
A200: 185 | B200: =FourBar2($B$8,$B$9,$B$10,1,1,A200*D_R) -> 0.1812248554 | C200: 3.000946874 | D200: =B200/D_R -> 10.38341936 | E200: =C200/D_R -> 171.9415904 | F200: 161.558171 | G200: =$B$8/$B$9*SIN(A200*D_R-C200)/SIN(C200-B200) -> 0.4130078238 | H200: =$B$8/$B$10*SIN(A200*D_R-B200)/SIN(C200-B200) -> 0.1851607773 | I200: =($B$8/$B$10*COS(A200*D_R-B200)-H200^2*COS(B200-C200)+$B$9/$B$10*G200^2)/SIN(C200-B200) -> -1.279874883
A201: 186 | B201: =FourBar2($B$8,$B$9,$B$10,1,1,A201*D_R) -> 0.1886088316 | C201: 3.003986014 | D201: =B201/D_R -> 10.80649003 | E201: =C201/D_R -> 172.1157203 | F201: 161.3092303 | G201: =$B$8/$B$9*SIN(A201*D_R-C201)/SIN(C201-B201) -> 0.4329930966 | H201: =$B$8/$B$10*SIN(A201*D_R-B201)/SIN(C201-B201) -> 0.1632415015 | I201: =($B$8/$B$10*COS(A201*D_R-B201)-H201^2*COS(B201-C201)+$B$9/$B$10*G201^2)/SIN(C201-B201) -> -1.23092493
A202: 187 | B202: =FourBar2($B$8,$B$9,$B$10,1,1,A202*D_R) -> 0.1963340124 | C202: 3.00665032 | D202: =B202/D_R -> 11.24911029 | E202: =C202/D_R -> 172.2683738 | F202: 161.0192635 | G202: =$B$8/$B$9*SIN(A202*D_R-C202)/SIN(C202-B202) -> 0.4520934021 | H202: =$B$8/$B$10*SIN(A202*D_R-B202)/SIN(C202-B202) -> 0.1422225979 | I202: =($B$8/$B$10*COS(A202*D_R-B202)-H202^2*COS(B202-C202)+$B$9/$B$10*G202^2)/SIN(C202-B202) -> -1.176954193
... 173 more rows
